Body Name,ONS SNAC ID,Pay Date,Transaction No,Amount �,Supplier Name,Company Registration No,Department,Account Name,CIPFA Service Reporting
Swale Borough Council,29UM,01/03/2017,1148473,2640.00,ACR LONDON LTD,4097241                  ,PROPERTY SERVICES,Non-Planned Building Maintenance,Corporate & Democratic Core
Swale Borough Council,29UM,01/03/2017,1148283,71.77,ALLSTAR BUSINESS SOLUTIONS LTD - (DT),1073098                  ,SERVICE DELIVERY,Petrol/Derv & Oil,Cultural and Related Services
Swale Borough Council,29UM,01/03/2017,1148283,131.24,ALLSTAR BUSINESS SOLUTIONS LTD - (DT),1073098                  ,ENVIRONMENTAL RESPONSE TEAM,Fuel For Contract Vehicles,Internal Trading Cost Centres
Swale Borough Council,29UM,01/03/2017,1148283,64.43,ALLSTAR BUSINESS SOLUTIONS LTD - (DT),1073098                  ,LEISURE & OPEN SPACES,Fuel For Contract Vehicles,Cultural and Related Services
Swale Borough Council,29UM,01/03/2017,1148326,2488.00,BBM SUSTAINABLE DESIGN LTD,4597504                  ,COMMUNITY SAFETY,Capitalised Fees And Charges,Not used in this Structure
Swale Borough Council,29UM,01/03/2017,1148760,100878.77,BLENWOOD LTD,4383277                  ,LEISURE & OPEN SPACES,Grounds Maint Suspense,Cultural and Related Services
Swale Borough Council,29UM,01/03/2017,1148761,3361.06,BLENWOOD LTD,4383277                  ,LEISURE & OPEN SPACES,Grounds Maint Suspense,Cultural and Related Services
Swale Borough Council,29UM,01/03/2017,1148360,807.50,CBS MAINTENANCE SERVICES LTD,                         ,PROPERTY SERVICES,Non-Planned Building Maintenance,Trading Undertaking
Swale Borough Council,29UM,01/03/2017,1148423,2750.00,CIPFA BUSINESS LTD,2376684                  ,FINANCIAL SERVICES,Payments in Year,Ledger/Suspense Codes
Swale Borough Council,29UM,01/03/2017,1148478,1500.00,CIPFA BUSINESS LTD,2376684                  ,FINANCIAL SERVICES,Fees And Services,Internal Trading Cost Centres
Swale Borough Council,29UM,01/03/2017,1148663,666.66,CLARKES SPORTS STUDIO,                         ,LEISURE & OPEN SPACES,Grants & Subscriptions,Cultural and Related Services
Swale Borough Council,29UM,01/03/2017,1148535,2217.63,COMENSURA LTD,04085767                 ,HUMAN RESOURCES,Agency/Contract Staff,Internal Trading Cost Centres
Swale Borough Council,29UM,01/03/2017,1148402,700.00,COMMUNITY SAFETY PROFESSIONALS LTD,                         ,COMMUNITY SAFETY,Fees And Services,Environmental and Regulatory Services
Swale Borough Council,29UM,01/03/2017,1147940,305.15,CONTRACT SECURITY SERVICES,2461362                  ,EXCHEQUER,Cash Security,Internal Trading Cost Centres
Swale Borough Council,29UM,01/03/2017,1147940,3672.36,CONTRACT SECURITY SERVICES,2461362                  ,CAR PARKS,Cash Security,Highway and Transport Services
Swale Borough Council,29UM,01/03/2017,1148713,653.91,DAYTRAD LIMITED,7654373                  ,HOUSING SERVICES,Housing Renovation Grants,Not used in this Structure
Swale Borough Council,29UM,01/03/2017,1148487,421.00,DIRECT UK DEALS LTD,07591420                 ,PROPERTY SERVICES,Non-Planned Building Maintenance,Corporate & Democratic Core
Swale Borough Council,29UM,01/03/2017,1148714,643.64,DOLPHIN STAIRLIFTS (KENT),04181846                 ,HOUSING SERVICES,Housing Renovation Grants,Not used in this Structure
Swale Borough Council,29UM,01/03/2017,1148715,10250.00,DOLPHIN STAIRLIFTS (KENT),04181846                 ,HOUSING SERVICES,Housing Renovation Grants,Not used in this Structure
Swale Borough Council,29UM,01/03/2017,1148716,1900.00,DOLPHIN STAIRLIFTS (KENT),04181846                 ,HOUSING SERVICES,Housing Renovation Grants,Not used in this Structure
Swale Borough Council,29UM,01/03/2017,1148502,7415.00,ENVIRO TECHNOLOGY SERVICES PLC,1726773                  ,MKS ENVIRONMENTAL SERVICES,Equipment Maintenance,Environmental and Regulatory Services
Swale Borough Council,29UM,01/03/2017,1148532,634.50,GOODWIN PEST MANAGEMENT,                         ,LEISURE & OPEN SPACES,Pest Control Services,Environmental and Regulatory Services
Swale Borough Council,29UM,01/03/2017,1148711,399.45,HIGHER ELEVATION LTD,                         ,HOUSING SERVICES,Housing Renovation Grants,Not used in this Structure
Swale Borough Council,29UM,01/03/2017,1148717,8644.61,HUBBARD & HOUGHTON CONSTRUCTION LTD,                         ,HOUSING SERVICES,Housing Renovation Grants,Not used in this Structure
Swale Borough Council,29UM,01/03/2017,1148637,5820.00,K JONES ELECTRICAL,3668823362               ,COMMUNITY SAFETY,Capital Constuction - CIS Works,Not used in this Structure
Swale Borough Council,29UM,01/03/2017,1148582,11250.00,KENT COUNTY COUNCIL,                         ,LEISURE & OPEN SPACES,Grants & Subscriptions,Cultural and Related Services
Swale Borough Council,29UM,01/03/2017,1148334,2687.45,KENT COUNTY COUNCIL (KCS),                         ,PROPERTY SERVICES,Gas,Corporate & Democratic Core
Swale Borough Council,29UM,01/03/2017,1148364,5452.12,KENT COUNTY COUNCIL (KCS),                         ,PROPERTY SERVICES,Electricity,Corporate & Democratic Core
Swale Borough Council,29UM,01/03/2017,1148365,16451.63,KGB CLEANING & SUPPORT SERVICES LTD,                         ,CONTRACT & PROCUREMENT,Private Contractors,Environmental and Regulatory Services
Swale Borough Council,29UM,01/03/2017,1148689,16451.63,KGB CLEANING & SUPPORT SERVICES LTD,                         ,CONTRACT & PROCUREMENT,Private Contractors,Environmental and Regulatory Services
Swale Borough Council,29UM,01/03/2017,1148588,2500.00,LEMAR LIMITED,04350292                 ,SERVICE DELIVERY,Private Contractors - CIS,Highway and Transport Services
Swale Borough Council,29UM,01/03/2017,1148588,500.00,LEMAR LIMITED,04350292                 ,SERVICE DELIVERY,Private Contractors - CIS,Highway and Transport Services
Swale Borough Council,29UM,01/03/2017,1148590,300.00,LEMAR LIMITED,04350292                 ,LEISURE & OPEN SPACES,Maintenance - Grounds,Cultural and Related Services
Swale Borough Council,29UM,01/03/2017,1148590,195.00,LEMAR LIMITED,04350292                 ,LEISURE & OPEN SPACES,Maintenance - Grounds,Cultural and Related Services
Swale Borough Council,29UM,01/03/2017,1148591,200.00,LEMAR LIMITED,04350292                 ,CAR PARKS,Maintenance - Grounds,Highway and Transport Services
Swale Borough Council,29UM,01/03/2017,1148591,131.00,LEMAR LIMITED,04350292                 ,CAR PARKS,Maintenance - Grounds,Highway and Transport Services
Swale Borough Council,29UM,01/03/2017,1147975,3302.76,LEX AUTOLEASE LTD,1090741                  ,HOUSING SERVICES,Hire & Leases,Housing
Swale Borough Council,29UM,01/03/2017,1148452,877.15,LLOYDS BANK - (DT),                         ,FINANCIAL SERVICES,Bank Charges,Corporate & Democratic Core
Swale Borough Council,29UM,01/03/2017,1148507,252.00,M.T.S. CLEANSING SERVICES LTD,2045340                  ,LEISURE & OPEN SPACES,Clearing Cesspools,Cultural and Related Services
Swale Borough Council,29UM,01/03/2017,1148456,70337.58,MAIDSTONE BOROUGH COUNCIL,                         ,CONTRACT & PROCUREMENT,Private Contractors,Environmental and Regulatory Services
Swale Borough Council,29UM,01/03/2017,1148506,70155.95,MAIDSTONE BOROUGH COUNCIL,                         ,CONTRACT & PROCUREMENT,Private Contractors,Environmental and Regulatory Services
Swale Borough Council,29UM,01/03/2017,1148506,189853.74,MAIDSTONE BOROUGH COUNCIL,                         ,CONTRACT & PROCUREMENT,Private Contractors,Environmental and Regulatory Services
Swale Borough Council,29UM,01/03/2017,1148634,3000.00,MLM CONSULTING ENGINEERS LTD,3057104                  ,COMMUNITY SAFETY,Capitalised Fees And Charges,Not used in this Structure
Swale Borough Council,29UM,01/03/2017,1148595,1800.00,REDACTED PERSONAL INFORMATION,                         ,PLANNING SERVICES,Legal Fees,Planning and Development Services
Swale Borough Council,29UM,01/03/2017,1148595,360.00,REDACTED PERSONAL INFORMATION,                         ,PLANNING SERVICES,Legal Fees,Planning and Development Services
Swale Borough Council,29UM,01/03/2017,1148639,3263.14,NETWORK RAIL,                         ,ECONOMIC DEVELOPMENT,Consultancy/Specialist Advice,Planning and Development Services
Swale Borough Council,29UM,01/03/2017,1148479,276.93,NPOWER,                         ,CAR PARKS,Electricity,Highway and Transport Services
Swale Borough Council,29UM,01/03/2017,1148494,258.08,NPOWER,                         ,LEISURE & OPEN SPACES,Electricity,Cultural and Related Services
Swale Borough Council,29UM,01/03/2017,1148471,475.00,PETER BAXTER ASSOCIATES LTD,3028997                  ,LEISURE & OPEN SPACES,Capitalised Fees And Charges,Not used in this Structure
Swale Borough Council,29UM,01/03/2017,1148627,1221.82,ROYAL MAIL GROUP LTD,4138203                  ,PROPERTY SERVICES,Postage,Holding Codes
Swale Borough Council,29UM,01/03/2017,1148712,10115.20,SOUTH EAST BUILDING CO LTD,1786838                  ,HOUSING SERVICES,Housing Renovation Grants,Not used in this Structure
Swale Borough Council,29UM,01/03/2017,1148630,280.00,SOUTHERN WATER SERVICES,                         ,LEISURE & OPEN SPACES,Construction,Not used in this Structure
Swale Borough Council,29UM,01/03/2017,1148630,56.00,SOUTHERN WATER SERVICES,                         ,LEISURE & OPEN SPACES,Construction,Not used in this Structure
Swale Borough Council,29UM,01/03/2017,1148514,347.63,SOUTHERN WATER SERVICES LIMITED,2366670                  ,LEISURE & OPEN SPACES,Water - Metered,Cultural and Related Services
Swale Borough Council,29UM,01/03/2017,1148516,1301.45,SOUTHERN WATER SERVICES LIMITED,2366670                  ,PROPERTY SERVICES,Water - Metered,Corporate & Democratic Core
Swale Borough Council,29UM,01/03/2017,1148516,2263.50,SOUTHERN WATER SERVICES LIMITED,2366670                  ,PROPERTY SERVICES,Water - Metered,Corporate & Democratic Core
Swale Borough Council,29UM,01/03/2017,1148474,1945.68,STEP JOCKEY LTD,8579579                  ,TOURISM & SPORTS DEVELOPMENT,Fees And Services,Cultural and Related Services
Swale Borough Council,29UM,01/03/2017,1148323,60194.10,SWALE COMMUNITY LEISURE LIMITED,31132R                   ,LEISURE & OPEN SPACES,Procurement Contracts Only,Cultural and Related Services
Swale Borough Council,29UM,01/03/2017,1148324,42500.00,SWALE COMMUNITY LEISURE LIMITED,31132R                   ,LEISURE & OPEN SPACES,Procurement Contracts Only,Cultural and Related Services
Swale Borough Council,29UM,01/03/2017,1148425,424.00,TIME ASSURED LIMITED,7483197                  ,PROPERTY SERVICES,Non-Planned Building Maintenance,Cultural and Related Services
Swale Borough Council,29UM,01/03/2017,1148425,270.00,TIME ASSURED LIMITED,7483197                  ,PROPERTY SERVICES,Non-Planned Building Maintenance,Cultural and Related Services
Swale Borough Council,29UM,01/03/2017,1148594,973.75,VENN GROUP LIMITED,                         ,MKS LEGAL SERVICES,Agency/Contract Staff,Internal Trading Cost Centres
Swale Borough Council,29UM,03/03/2017,1148907,30.81,SODEXO MOTIVATION SOLUTIONS UK LTD,2680629                  ,HUMAN RESOURCES,Fees And Services,Corporate & Democratic Core
Swale Borough Council,29UM,03/03/2017,4500565,-30.81,SODEXO MOTIVATION SOLUTIONS UK LTD,2680629                  ,HUMAN RESOURCES,Fees And Services,Corporate & Democratic Core
Swale Borough Council,29UM,06/03/2017,1148883,473.21,BORDEN PARISH COUNCIL,                         ,COMMUNITY SAFETY,Grants & Subscriptions,Central Services to the Public
Swale Borough Council,29UM,06/03/2017,4500562,-473.21,BORDEN PARISH COUNCIL,                         ,COMMUNITY SAFETY,Grants & Subscriptions,Central Services to the Public
Swale Borough Council,29UM,08/03/2017,1148832,840.00,ACORN MAINTENANCE SERVICES,3546898                  ,HOUSING SERVICES,Staying Put small repairs (contractors),Housing
Swale Borough Council,29UM,08/03/2017,1148929,6552.90,ACORN MAINTENANCE SERVICES,3546898                  ,HOUSING SERVICES,Housing Renovation Grants,Not used in this Structure
Swale Borough Council,29UM,08/03/2017,1148934,3778.20,ACORN MAINTENANCE SERVICES,3546898                  ,HOUSING SERVICES,Housing Renovation Grants,Not used in this Structure
Swale Borough Council,29UM,08/03/2017,1148936,4969.35,ACORN MAINTENANCE SERVICES,3546898                  ,HOUSING SERVICES,Housing Renovation Grants,Not used in this Structure
Swale Borough Council,29UM,08/03/2017,1148583,3264.53,AECOM INFRASTRUCTURE & ENV UK LTD,880328                   ,PLANNING SERVICES,Fees And Services,Planning and Development Services
Swale Borough Council,29UM,08/03/2017,1148657,432.00,AKW MEDI-CARE LTD,2764920                  ,HOUSING SERVICES,Staying Put - Materials,Housing
Swale Borough Council,29UM,08/03/2017,1148311,79059.00,ARRIVA KENT AND SURREY LIMITED,                         ,PLANNING SERVICES,Payments in Year,Ledger/Suspense Codes
Swale Borough Council,29UM,08/03/2017,1148932,1830.00,ASCENDIT LIFTS LTD,3493530                  ,HOUSING SERVICES,Housing Renovation Grants,Not used in this Structure
Swale Borough Council,29UM,08/03/2017,1148938,2160.00,ASCENDIT LIFTS LTD,3493530                  ,HOUSING SERVICES,Housing Renovation Grants,Not used in this Structure
Swale Borough Council,29UM,08/03/2017,1148733,456.85,CHEGWORTH GRAPHIC,7683594                  ,COMMUNICATIONS,Signage,Internal Trading Cost Centres
Swale Borough Council,29UM,08/03/2017,1148736,3510.00,CIPFA BUSINESS LTD,2376684                  ,FINANCIAL SERVICES,Payments in Year,Ledger/Suspense Codes
Swale Borough Council,29UM,08/03/2017,1148787,1500.00,CIPFA BUSINESS LTD,2376684                  ,FINANCIAL SERVICES,Fees And Services,Internal Trading Cost Centres
Swale Borough Council,29UM,08/03/2017,1148931,7837.45,COLDWELL CONSTRUCTION LTD,4814340                  ,HOUSING SERVICES,Housing Renovation Grants,Not used in this Structure
Swale Borough Council,29UM,08/03/2017,1148641,359.00,CONTRACT SECURITY SERVICES,2461362                  ,EXCHEQUER,Cash Security,Internal Trading Cost Centres
Swale Borough Council,29UM,08/03/2017,1148641,3444.48,CONTRACT SECURITY SERVICES,2461362                  ,CAR PARKS,Cash Security,Highway and Transport Services
Swale Borough Council,29UM,08/03/2017,1148804,800.00,CREED OUTDOOR LEARNING,                         ,TOURISM & SPORTS DEVELOPMENT,Grants & Subscriptions,Cultural and Related Services
Swale Borough Council,29UM,08/03/2017,1148675,4114.70,DAVID HUSKISSON ASSOCIATES LIMITED,2797095                  ,PLANNING SERVICES,Fees And Services,Planning and Development Services
Swale Borough Council,29UM,08/03/2017,1148518,1250.00,REDACTED PERSONAL INFORMATION,                         ,PLANNING SERVICES,Fees And Services,Planning and Development Services
Swale Borough Council,29UM,08/03/2017,1148838,836.00,DISCLOSURE & BARRING SERVICE (DT),                         ,DIRECTOR OF CORPORATE SERVICES,Fees And Services,Environmental and Regulatory Services
Swale Borough Council,29UM,08/03/2017,1148930,10750.00,DOLPHIN STAIRLIFTS (KENT),04181846                 ,HOUSING SERVICES,Housing Renovation Grants,Not used in this Structure
Swale Borough Council,29UM,08/03/2017,1148937,4680.00,DOLPHIN STAIRLIFTS (KENT),04181846                 ,HOUSING SERVICES,Housing Renovation Grants,Not used in this Structure
Swale Borough Council,29UM,08/03/2017,1148868,600.00,REDACTED PERSONAL INFORMATION,                         ,HOUSING SERVICES,RDS - Landlord claim on Bond Scheme,Housing
Swale Borough Council,29UM,08/03/2017,1148807,1718.75,GRAHAM BOULDEN & COMPANY,                         ,CAR PARKS,Rent,Highway and Transport Services
Swale Borough Council,29UM,08/03/2017,1148805,350.00,HARTLIP PARISH COUNCIL,                         ,TOURISM & SPORTS DEVELOPMENT,Grants & Subscriptions,Cultural and Related Services
Swale Borough Council,29UM,08/03/2017,1148874,183.33,HEMPSTEAD HOUSE,                         ,TOURISM & SPORTS DEVELOPMENT,Hire Of Premises,Cultural and Related Services
Swale Borough Council,29UM,08/03/2017,1148874,200.00,HEMPSTEAD HOUSE,                         ,TOURISM & SPORTS DEVELOPMENT,Catering Provisions,Cultural and Related Services
Swale Borough Council,29UM,08/03/2017,1148424,600.00,HOUSING REVIEWS LTD,5008207                  ,HOUSING SERVICES,Fees And Services,Housing
Swale Borough Council,29UM,08/03/2017,1148828,515.83,JESSOPS EUROPE LIMITED,08384909                 ,COMMUNICATIONS,Equipment Purchase,Internal Trading Cost Centres
Swale Borough Council,29UM,08/03/2017,1148405,4138.00,KENT COUNTY COUNCIL,                         ,PLANNING SERVICES,Consultancy/Specialist Advice,Planning and Development Services
Swale Borough Council,29UM,08/03/2017,1148783,1428.00,KENT COUNTY COUNCIL,                         ,SERVICE DELIVERY,Private Contractors - CIS,Environmental and Regulatory Services
Swale Borough Council,29UM,08/03/2017,1148895,367.20,KENT MESSENGER LTD,505554                   ,SERVICE DELIVERY,Private Contractors - CIS,Highway and Transport Services
Swale Borough Council,29UM,08/03/2017,1148896,346.80,KENT MESSENGER LTD,505554                   ,COMMUNICATIONS,Advertising & Promotion,Internal Trading Cost Centres
Swale Borough Council,29UM,08/03/2017,1148897,265.20,KENT MESSENGER LTD,505554                   ,SERVICE DELIVERY,Private Contractors - CIS,Highway and Transport Services
Swale Borough Council,29UM,08/03/2017,1148662,11717.50,KINGDOM SECURITY LIMITED,2795197                  ,ENVIRONMENTAL RESPONSE TEAM,Fees And Services,Planning and Development Services
Swale Borough Council,29UM,08/03/2017,1148111,31348.00,LESSHOMELESS LIMITED,08458851                 ,HOUSING SERVICES,B & B - Landlords Payments,Housing
Swale Borough Council,29UM,08/03/2017,1148835,721.00,LILAC ESTATES,                         ,HOUSING SERVICES,B & B - Landlords Payments,Housing
Swale Borough Council,29UM,08/03/2017,1148836,721.00,LILAC ESTATES,                         ,HOUSING SERVICES,B & B - Landlords Payments,Housing
Swale Borough Council,29UM,08/03/2017,1148837,406.00,LILAC ESTATES,                         ,HOUSING SERVICES,B & B - Landlords Payments,Housing
Swale Borough Council,29UM,08/03/2017,1148827,848.20,REDACTED PERSONAL INFORMATION,                         ,PLANNING SERVICES,Fees And Services,Planning and Development Services
Swale Borough Council,29UM,08/03/2017,1148724,387.16,LYRECO UK LTD,                         ,PROPERTY SERVICES,Paper,Internal Trading Cost Centres
Swale Borough Council,29UM,08/03/2017,1148773,351.92,LYRECO UK LTD,                         ,PROPERTY SERVICES,Equipment Purchase,Corporate & Democratic Core
Swale Borough Council,29UM,08/03/2017,1148775,387.16,LYRECO UK LTD,                         ,PROPERTY SERVICES,Paper,Internal Trading Cost Centres
Swale Borough Council,29UM,08/03/2017,1148669,373.14,MAIDSTONE BOROUGH COUNCIL,                         ,MKS ICT,Equipment Rental,Holding Codes
Swale Borough Council,29UM,08/03/2017,1148636,13350.00,MATTS MONITORS LTD,8501849                  ,MKS ENVIRONMENTAL SERVICES,Equipment,Not used in this Structure
Swale Borough Council,29UM,08/03/2017,1148731,2100.00,MELENGA BUSINESS SOLUTIONS LTD,06148446                 ,FINANCIAL SERVICES,Agency/Contract Staff,Internal Trading Cost Centres
Swale Borough Council,29UM,08/03/2017,1148864,1875.00,MERLINS COMPLEX LIMITED,                         ,DEMOCRATIC & ELECTORAL SERVICES,Payments in Year,Ledger/Suspense Codes
Swale Borough Council,29UM,08/03/2017,1148864,105.00,MERLINS COMPLEX LIMITED,                         ,DEMOCRATIC & ELECTORAL SERVICES,Payments in Year,Ledger/Suspense Codes
Swale Borough Council,29UM,08/03/2017,1148671,610.00,METRIC GROUP LTD,2560839                  ,CAR PARKS,Fees - Licence,Highway and Transport Services
Swale Borough Council,29UM,08/03/2017,1148644,1578.00,MIDLAND SOFTWARE LTD,1852206                  ,HUMAN RESOURCES,Payments in Year,Ledger/Suspense Codes
Swale Borough Council,29UM,08/03/2017,1148884,900.00,REDACTED PERSONAL INFORMATION,                         ,HOUSING SERVICES,RDS - Landlord claim on Bond Scheme,Housing
Swale Borough Council,29UM,08/03/2017,1148869,813.00,REDACTED PERSONAL INFORMATION,                         ,HOUSING SERVICES,RDS - Landlord claim on Bond Scheme,Housing
Swale Borough Council,29UM,08/03/2017,1148811,1085.90,NEWAUTO LTD T/A MOGOUK,3051444                  ,DIRECTOR OF CORPORATE SERVICES,Equipment Purchase,Environmental and Regulatory Services
Swale Borough Council,29UM,08/03/2017,1148795,7801.37,NORTHGATE PUBLIC SERVICES (UK) LTD,968498                   ,COMMISSIONING & CUSTOMER CONTACT,Payments in Year,Ledger/Suspense Codes
Swale Borough Council,29UM,08/03/2017,1148796,1134.70,NORTHGATE PUBLIC SERVICES (UK) LTD,968498                   ,COMMISSIONING & CUSTOMER CONTACT,Payments in Year,Ledger/Suspense Codes
Swale Borough Council,29UM,08/03/2017,1148444,350.99,NPOWER,3432100                  ,COMMUNITY SAFETY,Electricity,Cultural and Related Services
Swale Borough Council,29UM,08/03/2017,1148521,464.20,OBSIDIAN SECURITY LTD,                         ,PROPERTY SERVICES,Equipment Purchase,Corporate & Democratic Core
Swale Borough Council,29UM,08/03/2017,1148789,500.00,ON THE GRILL LTD,                         ,CHIEF EXECUTIVE,Catering Provisions,Corporate & Democratic Core
Swale Borough Council,29UM,08/03/2017,1148812,300.00,ON THE GRILL LTD,                         ,CHIEF EXECUTIVE,Catering Provisions,Corporate & Democratic Core
Swale Borough Council,29UM,08/03/2017,1148709,129843.94,OVENDEN ALLWORKS LIMITED,08052607                 ,SERVICE DELIVERY,Construction,Not used in this Structure
Swale Borough Council,29UM,08/03/2017,1148876,4218.20,P BINNIE CONSULTANCY LTD,07794784                 ,ECONOMIC DEVELOPMENT,Consultancy/Specialist Advice,Planning and Development Services
Swale Borough Council,29UM,08/03/2017,1148743,3787.00,PETER BRETT ASSOCIATES LLP,OC334398                 ,PLANNING SERVICES,Fees And Services,Planning and Development Services
Swale Borough Council,29UM,08/03/2017,1148655,550.00,PINSENT MASONS LLP,OC333653                 ,ECONOMIC DEVELOPMENT,Legal Fees,Planning and Development Services
Swale Borough Council,29UM,08/03/2017,1148791,290.33,PORTAKABIN LIMITED,685303                   ,LEISURE & OPEN SPACES,Maintenance - Grounds,Environmental and Regulatory Services
Swale Borough Council,29UM,08/03/2017,1148786,1010.50,QS CONSULT,                         ,COMMUNITY SAFETY,Capitalised Fees And Charges,Not used in this Structure
Swale Borough Council,29UM,08/03/2017,1148631,8500.00,QUINNEYS LTD,4355510                  ,SERVICE DELIVERY,Private Contractors - CIS,Cultural and Related Services
Swale Borough Council,29UM,08/03/2017,1148631,7026.66,QUINNEYS LTD,4355510                  ,SERVICE DELIVERY,Private Contractors - CIS,Cultural and Related Services
Swale Borough Council,29UM,08/03/2017,1148701,490.00,REARDON PROPERTIES,                         ,HOUSING SERVICES,B & B - Landlords Payments,Housing
Swale Borough Council,29UM,08/03/2017,1148703,490.00,REARDON PROPERTIES,                         ,HOUSING SERVICES,B & B - Landlords Payments,Housing
Swale Borough Council,29UM,08/03/2017,1148704,875.00,REARDON PROPERTIES,                         ,HOUSING SERVICES,B & B - Landlords Payments,Housing
Swale Borough Council,29UM,08/03/2017,1148705,735.00,REARDON PROPERTIES,                         ,HOUSING SERVICES,B & B - Landlords Payments,Housing
Swale Borough Council,29UM,08/03/2017,1148877,715.20,REVOLUTION EVENTS LTD,                         ,ECONOMIC DEVELOPMENT,Fees And Services,Planning and Development Services
Swale Borough Council,29UM,08/03/2017,1148859,1393.14,ROYAL MAIL GROUP LTD,4138203                  ,REVENUE SERVICES,Postage,Central Services to the Public
Swale Borough Council,29UM,08/03/2017,1148802,1068.20,RSP RAIL TRAVEL ACCOUNT - (DT),                         ,FINANCIAL SERVICES,Travel Warrants (Staff Travel),Internal Trading Cost Centres
Swale Borough Council,29UM,08/03/2017,1148524,4920.70,SHARP BUSINESS SYSTEMS UK,2136901                  ,MKS ICT,Equipment Rental,Holding Codes
Swale Borough Council,29UM,08/03/2017,1148687,2153.00,SKYE INSTRUMENTS LTD,1705412                  ,MKS ENVIRONMENTAL SERVICES,Equipment Maintenance,Environmental and Regulatory Services
Swale Borough Council,29UM,08/03/2017,1148935,11484.00,SOUTH EAST BUILDING CO LTD,1786838                  ,HOUSING SERVICES,Housing Renovation Grants,Not used in this Structure
Swale Borough Council,29UM,08/03/2017,1148801,300.00,SOUTH EAST EMPLOYERS,                         ,HUMAN RESOURCES,Management Consultants Fees,Corporate & Democratic Core
Swale Borough Council,29UM,08/03/2017,1148513,2702.93,SOUTHERN WATER SERVICES LIMITED,2366670                  ,CONTRACT & PROCUREMENT,Water - Metered,Environmental and Regulatory Services
Swale Borough Council,29UM,08/03/2017,1148515,2827.82,SOUTHERN WATER SERVICES LIMITED,2366670                  ,CONTRACT & PROCUREMENT,Water - Metered,Environmental and Regulatory Services
Swale Borough Council,29UM,08/03/2017,1148620,766.68,SOUTHERN WATER SERVICES LIMITED,2366670                  ,LEISURE & OPEN SPACES,Water - Metered,Cultural and Related Services
Swale Borough Council,29UM,08/03/2017,1148682,899.41,SOUTHERN WATER SERVICES LIMITED,2366670                  ,CONTRACT & PROCUREMENT,Water - Metered,Environmental and Regulatory Services
Swale Borough Council,29UM,08/03/2017,1148798,5800.00,SWALE COMMUNITY LEISURE LIMITED,31132R                   ,LEISURE & OPEN SPACES,Procurement Contracts Only,Cultural and Related Services
Swale Borough Council,29UM,08/03/2017,1148799,8500.00,SWALE COMMUNITY LEISURE LIMITED,31132R                   ,LEISURE & OPEN SPACES,Procurement Contracts Only,Cultural and Related Services
Swale Borough Council,29UM,08/03/2017,1148684,2080.00,SYNERGY CONST & PROP CONSULT,                         ,COMMUNITY SAFETY,Capitalised Fees And Charges,Not used in this Structure
Swale Borough Council,29UM,08/03/2017,1148858,1312.50,THE JOHN WOODWARD PARTNERSHIP,                         ,PLANNING SERVICES,Fees And Services,Planning and Development Services
Swale Borough Council,29UM,08/03/2017,1148648,1625.00,THOMSON REUTERS,1679046                  ,MKS LEGAL SERVICES,"Books, Journals & e - resources",Internal Trading Cost Centres
Swale Borough Council,29UM,08/03/2017,1148649,2690.00,THOMSON REUTERS,1679046                  ,MKS LEGAL SERVICES,"Books, Journals & e - resources",Internal Trading Cost Centres
Swale Borough Council,29UM,08/03/2017,1148398,265.00,THREE TOWNS OFFICE EQUIPMENT LTD,                         ,ENVIRONMENTAL RESPONSE TEAM,Furniture,Internal Trading Cost Centres
Swale Borough Council,29UM,08/03/2017,1148665,1715.00,TRAFALGAR TAVERN LTD,07999329                 ,HOUSING SERVICES,B & B - Landlords Payments,Housing
Swale Borough Council,29UM,08/03/2017,1148771,1230.00,VENN GROUP LIMITED,                         ,MKS LEGAL SERVICES,Agency/Contract Staff,Internal Trading Cost Centres
Swale Borough Council,29UM,08/03/2017,1148585,1163.75,VIVID RESOURCING LIMITED,06459262                 ,PLANNING SERVICES,Agency/Contract Staff,Internal Trading Cost Centres
Swale Borough Council,29UM,08/03/2017,1148766,2423.75,VIVID RESOURCING LIMITED,06459262                 ,PLANNING SERVICES,Agency/Contract Staff,Internal Trading Cost Centres
Swale Borough Council,29UM,08/03/2017,1148646,900.00,VP PROPERTY DEVELOPMENT LTD,                         ,HOUSING SERVICES,B & B - Landlords Payments,Housing
Swale Borough Council,29UM,08/03/2017,1148824,6104.00,WHITE RESIDENTIAL,                         ,HOUSING SERVICES,B & B - Landlords Payments,Housing
Swale Borough Council,29UM,08/03/2017,1148691,-1600.00,WILLOW TREE HOME SOLUTIONS LTD,                         ,HOUSING SERVICES,Staying Put small repairs (contractors),Housing
Swale Borough Council,29UM,08/03/2017,1148692,1333.33,WILLOW TREE HOME SOLUTIONS LTD,                         ,HOUSING SERVICES,Staying Put small repairs (contractors),Housing
Swale Borough Council,29UM,08/03/2017,1148706,404.00,WILLOW TREE HOME SOLUTIONS LTD,                         ,HOUSING SERVICES,Staying Put small repairs (contractors),Housing
Swale Borough Council,29UM,08/03/2017,1148933,5700.76,WILLOW TREE HOME SOLUTIONS LTD,                         ,HOUSING SERVICES,Housing Renovation Grants,Not used in this Structure
Swale Borough Council,29UM,08/03/2017,1148668,4700.00,WYNDEHAM PETERBOROUGH LTD,2261988                  ,COMMUNICATIONS,Developing & Printing,Corporate & Democratic Core
Swale Borough Council,29UM,15/03/2017,1148922,980.00,ACR LONDON LTD,4097241                  ,PROPERTY SERVICES,Non-Planned Building Maintenance,Corporate & Democratic Core
Swale Borough Council,29UM,15/03/2017,1148923,1850.00,ACR LONDON LTD,4097241                  ,PROPERTY SERVICES,Non-Planned Building Maintenance,Corporate & Democratic Core
Swale Borough Council,29UM,15/03/2017,1148924,426.00,ACR LONDON LTD,4097241                  ,PROPERTY SERVICES,Non-Planned Building Maintenance,Corporate & Democratic Core
Swale Borough Council,29UM,15/03/2017,1148841,114.76,ALLSTAR BUSINESS SOLUTIONS LTD - (DT),1073098                  ,DEMOCRATIC & ELECTORAL SERVICES,Petrol/Derv & Oil,Corporate & Democratic Core
Swale Borough Council,29UM,15/03/2017,1148841,45.42,ALLSTAR BUSINESS SOLUTIONS LTD - (DT),1073098                  ,ENVIRONMENTAL RESPONSE TEAM,Fuel For Contract Vehicles,Internal Trading Cost Centres
Swale Borough Council,29UM,15/03/2017,1148841,113.12,ALLSTAR BUSINESS SOLUTIONS LTD - (DT),1073098                  ,LEISURE & OPEN SPACES,Fuel For Contract Vehicles,Cultural and Related Services
Swale Borough Council,29UM,15/03/2017,1148841,75.71,ALLSTAR BUSINESS SOLUTIONS LTD - (DT),1073098                  ,LEISURE & OPEN SPACES,Fuel For Contract Vehicles,Cultural and Related Services
Swale Borough Council,29UM,15/03/2017,1148841,52.12,ALLSTAR BUSINESS SOLUTIONS LTD - (DT),1073098                  ,ENVIRONMENTAL RESPONSE TEAM,Fuel For Contract Vehicles,Environmental and Regulatory Services
Swale Borough Council,29UM,15/03/2017,1148842,70.20,ALLSTAR BUSINESS SOLUTIONS LTD - (DT),1073098                  ,SERVICE DELIVERY,Petrol/Derv & Oil,Cultural and Related Services
Swale Borough Council,29UM,15/03/2017,1148842,282.68,ALLSTAR BUSINESS SOLUTIONS LTD - (DT),1073098                  ,ENVIRONMENTAL RESPONSE TEAM,Fuel For Contract Vehicles,Internal Trading Cost Centres
Swale Borough Council,29UM,15/03/2017,1148842,60.13,ALLSTAR BUSINESS SOLUTIONS LTD - (DT),1073098                  ,LEISURE & OPEN SPACES,Fuel For Contract Vehicles,Cultural and Related Services
Swale Borough Council,29UM,15/03/2017,1148843,47.17,ALLSTAR BUSINESS SOLUTIONS LTD - (DT),1073098                  ,DEMOCRATIC & ELECTORAL SERVICES,Petrol/Derv & Oil,Corporate & Democratic Core
Swale Borough Council,29UM,15/03/2017,1148843,106.00,ALLSTAR BUSINESS SOLUTIONS LTD - (DT),1073098                  ,SERVICE DELIVERY,Petrol/Derv & Oil,Cultural and Related Services
Swale Borough Council,29UM,15/03/2017,1148843,112.80,ALLSTAR BUSINESS SOLUTIONS LTD - (DT),1073098                  ,ENVIRONMENTAL RESPONSE TEAM,Fuel For Contract Vehicles,Internal Trading Cost Centres
Swale Borough Council,29UM,15/03/2017,1148843,113.12,ALLSTAR BUSINESS SOLUTIONS LTD - (DT),1073098                  ,LEISURE & OPEN SPACES,Fuel For Contract Vehicles,Cultural and Related Services
Swale Borough Council,29UM,15/03/2017,1148843,51.69,ALLSTAR BUSINESS SOLUTIONS LTD - (DT),1073098                  ,ENVIRONMENTAL RESPONSE TEAM,Fuel For Contract Vehicles,Environmental and Regulatory Services
Swale Borough Council,29UM,15/03/2017,1149004,55.46,ALLSTAR BUSINESS SOLUTIONS LTD - (DT),1073098                  ,DEMOCRATIC & ELECTORAL SERVICES,Petrol/Derv & Oil,Corporate & Democratic Core
Swale Borough Council,29UM,15/03/2017,1149004,288.43,ALLSTAR BUSINESS SOLUTIONS LTD - (DT),1073098                  ,ENVIRONMENTAL RESPONSE TEAM,Fuel For Contract Vehicles,Internal Trading Cost Centres
Swale Borough Council,29UM,15/03/2017,1149004,71.32,ALLSTAR BUSINESS SOLUTIONS LTD - (DT),1073098                  ,LEISURE & OPEN SPACES,Fuel For Contract Vehicles,Cultural and Related Services
Swale Borough Council,29UM,15/03/2017,1149069,6000.00,ALPHA MECHANICAL CONTRACTORS LTD,10247265                 ,COMMUNITY SAFETY,Capital Constuction - CIS Works,Not used in this Structure
Swale Borough Council,29UM,15/03/2017,1149069,6610.00,ALPHA MECHANICAL CONTRACTORS LTD,10247265                 ,COMMUNITY SAFETY,Capital Constuction - CIS Works,Not used in this Structure
Swale Borough Council,29UM,15/03/2017,1148785,12881.69,APCOA PARKING (UK) LTD,2572947                  ,CAR PARKS,Private Contractors,Highway and Transport Services
Swale Borough Council,29UM,15/03/2017,1148785,19322.54,APCOA PARKING (UK) LTD,2572947                  ,CAR PARKS,Private Contractors,Highway and Transport Services
Swale Borough Council,29UM,15/03/2017,1149010,2488.00,BBM SUSTAINABLE DESIGN LTD,4597504                  ,COMMUNITY SAFETY,Capitalised Fees And Charges,Not used in this Structure
Swale Borough Council,29UM,15/03/2017,1149002,1462.61,BLENWOOD LTD,4383277                  ,LEISURE & OPEN SPACES,Grounds Contract Variations,Cultural and Related Services
Swale Borough Council,29UM,15/03/2017,1149005,473.21,BOBBING PARISH COUNCIL,                         ,COMMUNITY SAFETY,Grants & Subscriptions,Central Services to the Public
Swale Borough Council,29UM,15/03/2017,1148987,550.00,BRITISH DESTINATIONS,                         ,TOURISM & SPORTS DEVELOPMENT,Grants & Subscriptions,Cultural and Related Services
Swale Borough Council,29UM,15/03/2017,1148851,1470.00,BT DEVELOPMENTS,                         ,HOUSING SERVICES,B & B - Landlords Payments,Housing
Swale Borough Council,29UM,15/03/2017,1148650,1295.00,CARRINGTON WEST LIMITED,07344853                 ,PLANNING SERVICES,Agency/Contract Staff,Internal Trading Cost Centres
Swale Borough Council,29UM,15/03/2017,1148894,665.00,CARRINGTON WEST LIMITED,07344853                 ,PLANNING SERVICES,Agency/Contract Staff,Internal Trading Cost Centres
Swale Borough Council,29UM,15/03/2017,1148995,3333.33,CHALKWELL COACH HIRE LTD,2520842                  ,PLANNING SERVICES,Payments in Year,Ledger/Suspense Codes
Swale Borough Council,29UM,15/03/2017,1149026,2228.33,CHILDREN AND FAMILIES LTD,                         ,COMMUNITY SAFETY,Fees And Services,Planning and Development Services
Swale Borough Council,29UM,15/03/2017,1148806,375.00,CHURCH JESUS CHRIST LATTER DAY ST,                         ,PROPERTY SERVICES,Rent,Corporate & Democratic Core
Swale Borough Council,29UM,15/03/2017,1148730,3618.21,COMENSURA LTD,04085767                 ,HUMAN RESOURCES,Agency/Contract Staff,Internal Trading Cost Centres
Swale Borough Council,29UM,15/03/2017,1148939,4070.79,COMENSURA LTD,04085767                 ,HUMAN RESOURCES,Agency/Contract Staff,Internal Trading Cost Centres
Swale Borough Council,29UM,15/03/2017,1149025,4860.83,CORE ASSETS CHILDREN'S SERVICES LTD,                         ,COMMUNITY SAFETY,Fees And Services,Planning and Development Services
Swale Borough Council,29UM,15/03/2017,1149089,4200.00,DOLPHIN STAIRLIFTS (KENT),04181846                 ,HOUSING SERVICES,Housing Renovation Grants,Not used in this Structure
Swale Borough Council,29UM,15/03/2017,1148863,42500.00,DTZ TESCO STORES THE FORUM (RENT),                         ,CAR PARKS,Rent,Highway and Transport Services
Swale Borough Council,29UM,15/03/2017,1148863,8500.00,DTZ TESCO STORES THE FORUM (RENT),                         ,CAR PARKS,Rent,Highway and Transport Services
Swale Borough Council,29UM,15/03/2017,1148660,17.91,EDF ENERGY CUSTOMERS PLC,                         ,HOUSING SERVICES,Electricity,Housing
Swale Borough Council,29UM,15/03/2017,1148660,887.51,EDF ENERGY CUSTOMERS PLC,                         ,HOUSING SERVICES,Gas,Housing
Swale Borough Council,29UM,15/03/2017,1148660,-373.34,EDF ENERGY CUSTOMERS PLC,                         ,HOUSING SERVICES,Gas,Housing
Swale Borough Council,29UM,15/03/2017,1148660,-2.75,EDF ENERGY CUSTOMERS PLC,                         ,HOUSING SERVICES,Gas,Housing
Swale Borough Council,29UM,15/03/2017,1148964,400.00,FAVERSHAM TOWN COUNCIL,                         ,COMMUNITY SAFETY,Grants & Subscriptions,Central Services to the Public
Swale Borough Council,29UM,15/03/2017,1148997,304.00,GRAHAMS AUTO REPAIRS,04766184                 ,DEMOCRATIC & ELECTORAL SERVICES,Repair And Maintenance,Corporate & Democratic Core
Swale Borough Council,29UM,15/03/2017,1148962,550.00,GREEN CUBE CIC,                         ,COMMUNITY SAFETY,Grants & Subscriptions,Central Services to the Public
Swale Borough Council,29UM,15/03/2017,1148489,216.67,HILTON BRIGHTON METROPOLE,SC38141                  ,HOUSING SERVICES,Conference,Housing
Swale Borough Council,29UM,15/03/2017,1148489,43.33,HILTON BRIGHTON METROPOLE,SC38141                  ,HOUSING SERVICES,Conference,Housing
Swale Borough Council,29UM,15/03/2017,1149055,250.00,HUBBARD & HOUGHTON CONSTRUCTION LTD,                         ,HOUSING SERVICES,Homelessness  Prevention Services,Housing
Swale Borough Council,29UM,15/03/2017,1149090,1735.11,HUBBARD & HOUGHTON CONSTRUCTION LTD,                         ,HOUSING SERVICES,Housing Renovation Grants,Not used in this Structure
Swale Borough Council,29UM,15/03/2017,1148881,500.00,IWADE AT THE BARN,                         ,COMMUNITY SAFETY,Grants & Subscriptions,Central Services to the Public
Swale Borough Council,29UM,15/03/2017,1148918,1965.20,J BREHENY CONTRACTORS LTD,753976                   ,EMERGENCY PLANNING,Payments in Year,Ledger/Suspense Codes
Swale Borough Council,29UM,15/03/2017,1148919,27624.09,J BREHENY CONTRACTORS LTD,753976                   ,EMERGENCY PLANNING,Payments in Year,Ledger/Suspense Codes
Swale Borough Council,29UM,15/03/2017,1148940,1400.00,JASMIL KENNELS,05595524                 ,ENVIRONMENTAL RESPONSE TEAM,Kennelling Of Dogs,Environmental and Regulatory Services
Swale Borough Council,29UM,15/03/2017,1148940,-55.00,JASMIL KENNELS,05595524                 ,ENVIRONMENTAL RESPONSE TEAM,Income collected by Dog Kennels,Environmental and Regulatory Services
Swale Borough Council,29UM,15/03/2017,1148694,300.00,K V PROF CLEANING & PROP MAINT,                         ,HOUSING SERVICES,Homelessness  Prevention Services,Housing
Swale Borough Council,29UM,15/03/2017,1149014,2467.69,KENT COUNTY COUNCIL,                         ,COMMISSIONING & CUSTOMER CONTACT,Contracts,Internal Trading Cost Centres
Swale Borough Council,29UM,15/03/2017,1148983,3885.72,KENT COUNTY COUNCIL (KCS),                         ,PROPERTY SERVICES,Electricity,Corporate & Democratic Core
Swale Borough Council,29UM,15/03/2017,1149015,300.00,LEMAR LIMITED,04350292                 ,SERVICE DELIVERY,Private Contractors - CIS,Highway and Transport Services
Swale Borough Council,29UM,15/03/2017,1149015,225.00,LEMAR LIMITED,04350292                 ,SERVICE DELIVERY,Private Contractors - CIS,Highway and Transport Services
Swale Borough Council,29UM,15/03/2017,1148825,24255.00,LESSHOMELESS LIMITED,08458851                 ,HOUSING SERVICES,B & B - Landlords Payments,Housing
Swale Borough Council,29UM,15/03/2017,1148984,550.00,LUBBE & SONS (BULBS) LTD,836902                   ,LEISURE & OPEN SPACES,Nursery Stock,Cultural and Related Services
Swale Borough Council,29UM,15/03/2017,1148985,500.00,LUBBE & SONS (BULBS) LTD,836902                   ,LEISURE & OPEN SPACES,Maintenance - Grounds,Cultural and Related Services
Swale Borough Council,29UM,15/03/2017,1148643,1260.00,LUSHLAND,4289261                  ,PLANNING SERVICES,Fees And Services,Planning and Development Services
Swale Borough Council,29UM,15/03/2017,1148834,700.00,LUSHLAND,4289261                  ,PLANNING SERVICES,Fees And Services,Planning and Development Services
Swale Borough Council,29UM,15/03/2017,1148508,3495.00,MAGEES GUESTHOUSE,                         ,HOUSING SERVICES,B & B - Landlords Payments,Housing
Swale Borough Council,29UM,15/03/2017,1148686,3290.00,MAGEES GUESTHOUSE,                         ,HOUSING SERVICES,B & B - Landlords Payments,Housing
Swale Borough Council,29UM,15/03/2017,1148908,2840.00,MAGEES GUESTHOUSE,                         ,HOUSING SERVICES,B & B - Landlords Payments,Housing
Swale Borough Council,29UM,15/03/2017,1148790,62024.63,MAIDSTONE BOROUGH COUNCIL,                         ,HUMAN RESOURCES,MKS Charges for HR Service,Internal Trading Cost Centres
Swale Borough Council,29UM,15/03/2017,1148446,1656.00,MATCHTECH,4426336                  ,PLANNING SERVICES,Agency/Contract Staff,Internal Trading Cost Centres
Swale Borough Council,29UM,15/03/2017,1148629,1702.00,MATCHTECH,4426336                  ,PLANNING SERVICES,Agency/Contract Staff,Internal Trading Cost Centres
Swale Borough Council,29UM,15/03/2017,1148661,1702.00,MATCHTECH,4426336                  ,PLANNING SERVICES,Agency/Contract Staff,Internal Trading Cost Centres
Swale Borough Council,29UM,15/03/2017,1148831,1702.00,MATCHTECH,4426336                  ,PLANNING SERVICES,Agency/Contract Staff,Internal Trading Cost Centres
Swale Borough Council,29UM,15/03/2017,1148645,2626.40,MEDWAY ACCOMMODATION LIMITED,                         ,HOUSING SERVICES,B & B - Landlords Payments,Housing
Swale Borough Council,29UM,15/03/2017,1148645,547.17,MEDWAY ACCOMMODATION LIMITED,                         ,HOUSING SERVICES,B & B - Landlords Payments,Housing
Swale Borough Council,29UM,15/03/2017,1148850,2340.80,MEDWAY ACCOMMODATION LIMITED,                         ,HOUSING SERVICES,B & B - Landlords Payments,Housing
Swale Borough Council,29UM,15/03/2017,1148850,487.67,MEDWAY ACCOMMODATION LIMITED,                         ,HOUSING SERVICES,B & B - Landlords Payments,Housing
Swale Borough Council,29UM,15/03/2017,1149039,2481.60,MEDWAY ACCOMMODATION LIMITED,                         ,HOUSING SERVICES,B & B - Landlords Payments,Housing
Swale Borough Council,29UM,15/03/2017,1149039,517.00,MEDWAY ACCOMMODATION LIMITED,                         ,HOUSING SERVICES,B & B - Landlords Payments,Housing
Swale Borough Council,29UM,15/03/2017,1148912,900.00,MEDWAY PUBLIC SERVICES LTD,10041989                 ,COMMUNITY SAFETY,CCTV Monitoring Service,Environmental and Regulatory Services
Swale Borough Council,29UM,15/03/2017,1148914,24894.87,MEDWAY PUBLIC SERVICES LTD,10041989                 ,COMMUNITY SAFETY,CCTV Monitoring Service,Environmental and Regulatory Services
Swale Borough Council,29UM,15/03/2017,1148963,400.00,MILTON CREEK TRUST,                         ,COMMUNITY SAFETY,Grants & Subscriptions,Central Services to the Public
Swale Borough Council,29UM,15/03/2017,1148975,771.85,MPS MARKETING SERVICES LIMITED,6360656                  ,DEMOCRATIC & ELECTORAL SERVICES,Fees And Services,Central Services to the Public
Swale Borough Council,29UM,15/03/2017,1149036,300.00,REDACTED PERSONAL INFORMATION,                         ,MKS LEGAL SERVICES,Agency/Contract Staff,Internal Trading Cost Centres
Swale Borough Council,29UM,15/03/2017,1149036,60.00,REDACTED PERSONAL INFORMATION,                         ,MKS LEGAL SERVICES,Agency/Contract Staff,Internal Trading Cost Centres
Swale Borough Council,29UM,15/03/2017,1148925,250.00,P BINNIE CONSULTANCY LTD,07794784                 ,COMMUNITY SAFETY,Capitalised Fees And Charges,Not used in this Structure
Swale Borough Council,29UM,15/03/2017,1148699,26867.00,PARAMOUNT INDEPENDENT PROPERTY SERVICES,                         ,HOUSING SERVICES,B & B - Landlords Payments,Housing
Swale Borough Council,29UM,15/03/2017,1149135,15697.00,PEAC HOLDINGS (UK) LTD (DT),3088213                  ,LEISURE & OPEN SPACES,Contracts,Cultural and Related Services
Swale Borough Council,29UM,15/03/2017,1149136,15697.00,PEAC HOLDINGS (UK) LTD (DT),3088213                  ,LEISURE & OPEN SPACES,Contracts,Cultural and Related Services
Swale Borough Council,29UM,15/03/2017,1148676,539.11,PHS GROUP LTD,770813                   ,PROPERTY SERVICES,Service Contracts,Corporate & Democratic Core
Swale Borough Council,29UM,15/03/2017,1148990,489.00,PREMIER PAPER GROUP LTD,                         ,PROPERTY SERVICES,Paper,Internal Trading Cost Centres
Swale Borough Council,29UM,15/03/2017,1148880,600.00,QUEENBOROUGH HARBOUR TRUST LTD,                         ,COMMUNITY SAFETY,Grants & Subscriptions,Central Services to the Public
Swale Borough Council,29UM,15/03/2017,1149141,19.70,RBS PURCHASING CARD (DT) - TESCO,,DEMOCRATIC & ELECTORAL SERVICES,Catering Provisions,Corporate & Democratic Core
Swale Borough Council,29UM,15/03/2017,1149142,102.47,RBS PURCHASING CARD (DT) - VERSAPAK,,PROPERTY SERVICES,Equipment Purchase,Corporate & Democratic Core
Swale Borough Council,29UM,15/03/2017,1149142,8.33,RBS PURCHASING CARD (DT) - WILKO,,PROPERTY SERVICES,Cleaning Materials,Internal Trading Cost Centres
Swale Borough Council,29UM,15/03/2017,1149143,15.00,RBS PURCHASING CARD (DT) - BAILEYS,,DEMOCRATIC & ELECTORAL SERVICES,Hospitality Allowance - Mayor,Corporate & Democratic Core
Swale Borough Council,29UM,15/03/2017,1149143,2.00,RBS PURCHASING CARD (DT) - ICELAND,,DEMOCRATIC & ELECTORAL SERVICES,Hospitality Allowance - Mayor,Corporate & Democratic Core
Swale Borough Council,29UM,15/03/2017,1149154,9.16,RBS PURCHASING CARD (DT) - ICELAND,                         ,CHIEF EXECUTIVE,Catering Provisions,Corporate & Democratic Core
Swale Borough Council,29UM,15/03/2017,1149154,28.85,RBS PURCHASING CARD (DT) - SAINSBURY'S,                         ,DEMOCRATIC & ELECTORAL SERVICES,Catering Provisions,Corporate & Democratic Core
Swale Borough Council,29UM,15/03/2017,1149154,91.67,RBS PURCHASING CARD (DT) - S&B CAR & VAN HIRE LTD,                         ,PLANNING SERVICES,Coaches / Minibus,Planning and Development Services
Swale Borough Council,29UM,15/03/2017,1149154,5.80,RBS PURCHASING CARD (DT) - AMAZON,                         ,EMERGENCY PLANNING,Equipment Purchase,Central Services to the Public
Swale Borough Council,29UM,15/03/2017,1149154,3.28,RBS PURCHASING CARD (DT) - AMAZON,                         ,EMERGENCY PLANNING,Equipment Purchase,Central Services to the Public
Swale Borough Council,29UM,15/03/2017,1149154,6.00,RBS PURCHASING CARD (DT) - SAINSBURY'S,                         ,DIRECTOR OF CORPORATE SERVICES,Catering Provisions,Internal Trading Cost Centres
Swale Borough Council,29UM,15/03/2017,1149154,149.00,RBS PURCHASING CARD (DT) - INGRAM IMAGE LTD,                         ,COMMUNICATIONS,Materials - Artwork,Internal Trading Cost Centres
Swale Borough Council,29UM,15/03/2017,1149155,236.15,RBS PURCHASING CARD (DT) - CILEx LAW SOCIETY LTD,                         ,MKS LEGAL SERVICES,"Books, Journals & e - resources",Internal Trading Cost Centres
Swale Borough Council,29UM,15/03/2017,1149155,6.75,RBS PURCHASING CARD (DT) - ICELAND,                         ,DIRECTOR OF REGENERATION,Catering Provisions,Internal Trading Cost Centres
Swale Borough Council,29UM,15/03/2017,1149155,10.78,RBS PURCHASING CARD (DT) - MORRISONS,                         ,CHIEF EXECUTIVE,Catering Provisions,Internal Trading Cost Centres
Swale Borough Council,29UM,15/03/2017,1149156,26.27,RBS PURCHASING CARD (DT) - SITTINGBOURNE SHOES,,HOUSING SERVICES,General Maintenance,Housing
Swale Borough Council,29UM,15/03/2017,1149156,30.50,RBS PURCHASING CARD (DT) - AMAZON,,HOUSING SERVICES,Equipment Purchase,Housing
Swale Borough Council,29UM,15/03/2017,1149156,30.50,RBS PURCHASING CARD (DT) - AMAZON,,HOUSING SERVICES,Equipment Purchase,Housing
Swale Borough Council,29UM,15/03/2017,1149157,20.05,RBS PURCHASING CARD (DT) - POUNDLAND,                         ,CHIEF EXECUTIVE,Catering Provisions,Corporate & Democratic Core
Swale Borough Council,29UM,15/03/2017,1149157,1.66,RBS PURCHASING CARD (DT) - JIBJAB,                         ,CHIEF EXECUTIVE,"Books, Journals & e - resources",Corporate & Democratic Core
Swale Borough Council,29UM,15/03/2017,1149157,1.66,RBS PURCHASING CARD (DT) - JIBJAB,                         ,CHIEF EXECUTIVE,"Books, Journals & e - resources",Corporate & Democratic Core
Swale Borough Council,29UM,15/03/2017,1149157,85.82,RBS PURCHASING CARD (DT) - ASDA,                         ,CHIEF EXECUTIVE,Catering Provisions,Corporate & Democratic Core
Swale Borough Council,29UM,15/03/2017,1149157,224.10,RBS PURCHASING CARD (DT) - EMAP,                         ,CHIEF EXECUTIVE,Grants & Subscriptions,Internal Trading Cost Centres
Swale Borough Council,29UM,15/03/2017,1149157,87.50,RBS PURCHASING CARD (DT) - KEEP BRITAIN TIDY,                         ,CONTRACT & PROCUREMENT,Equipment Purchase,Environmental and Regulatory Services
Swale Borough Council,29UM,15/03/2017,1149158,516.00,RBS PURCHASING CARD (DT) - HMCTS,                         ,REVENUE SERVICES,Fees And Services,Central Services to the Public
Swale Borough Council,29UM,15/03/2017,1149159,50.00,RBS PURCHASING CARD (DT) - WATLING TYRES,                         ,HOUSING SERVICES,Hire & Leases,Housing
Swale Borough Council,29UM,15/03/2017,1149159,70.53,RBS PURCHASING CARD (DT) - MORRISONS,                         ,HOUSING SERVICES,Hire & Leases,Housing
Swale Borough Council,29UM,15/03/2017,1149159,58.20,RBS PURCHASING CARD (DT) - WICKES,                         ,HOUSING SERVICES,Staying Put - Materials,Housing
Swale Borough Council,29UM,15/03/2017,1149159,9.07,RBS PURCHASING CARD (DT) - WICKES,                         ,HOUSING SERVICES,Staying Put - Materials,Housing
Swale Borough Council,29UM,15/03/2017,1149159,39.98,RBS PURCHASING CARD (DT) - DUNELM,                         ,HOUSING SERVICES,Staying Put - Materials,Housing
Swale Borough Council,29UM,15/03/2017,1149159,25.22,RBS PURCHASING CARD (DT) - BP,                         ,HOUSING SERVICES,Fuel For Contract Vehicles,Housing
Swale Borough Council,29UM,15/03/2017,1149159,92.22,RBS PURCHASING CARD (DT) - ARGOS,                         ,HOUSING SERVICES,Staying Put - Materials,Housing
Swale Borough Council,29UM,15/03/2017,1149159,35.00,RBS PURCHASING CARD (DT) - EMMAUS,                         ,HOUSING SERVICES,Staying Put - Materials,Housing
Swale Borough Council,29UM,15/03/2017,1149159,26.00,RBS PURCHASING CARD (DT) - WILKO,                         ,HOUSING SERVICES,Staying Put - Materials,Housing
Swale Borough Council,29UM,15/03/2017,1149160,28.95,RBS PURCHASING CARD (DT) - JC LOCK & SAFE,,MKS ENVIRONMENTAL SERVICES,Non-Planned Building Maintenance,Environmental and Regulatory Services
Swale Borough Council,29UM,15/03/2017,1149160,35.75,RBS PURCHASING CARD (DT) - TOOLSTATION,,PROPERTY SERVICES,Equipment Purchase,Corporate & Democratic Core
Swale Borough Council,29UM,15/03/2017,1149160,17.81,RBS PURCHASING CARD (DT) - WICKES ,,PROPERTY SERVICES,Non-Planned Building Maintenance,Corporate & Democratic Core
Swale Borough Council,29UM,15/03/2017,1149160,4.16,RBS PURCHASING CARD (DT) - WICKES,,MKS ENVIRONMENTAL SERVICES,Non-Planned Building Maintenance,Environmental and Regulatory Services
Swale Borough Council,29UM,15/03/2017,1149160,4.50,RBS PURCHASING CARD (DT) - WILKO,,PROPERTY SERVICES,Equipment Purchase,Corporate & Democratic Core
Swale Borough Council,29UM,15/03/2017,1149160,21.64,RBS PURCHASING CARD (DT) - WICKES,,ECONOMY & COMMUNITIES,Non-Planned Building Maintenance,Cultural and Related Services
Swale Borough Council,29UM,15/03/2017,1149160,23.04,RBS PURCHASING CARD (DT) - TOOLSTATION,,SERVICE DELIVERY,Non-Planned Building Maintenance,Environmental and Regulatory Services
Swale Borough Council,29UM,15/03/2017,1149161,9.99,RBS PURCHASING CARD (DT) - AMAZON,,MKS LEGAL SERVICES,Stationery,Internal Trading Cost Centres
Swale Borough Council,29UM,15/03/2017,1149161,22.11,RBS PURCHASING CARD (DT) - PARCEL FORCE,,MKS LEGAL SERVICES,Courier Service,Internal Trading Cost Centres
Swale Borough Council,29UM,15/03/2017,1148977,490.00,REARDON PROPERTIES,                         ,HOUSING SERVICES,B & B - Landlords Payments,Housing
Swale Borough Council,29UM,15/03/2017,1148978,875.00,REARDON PROPERTIES,                         ,HOUSING SERVICES,B & B - Landlords Payments,Housing
Swale Borough Council,29UM,15/03/2017,1148979,490.00,REARDON PROPERTIES,                         ,HOUSING SERVICES,B & B - Landlords Payments,Housing
Swale Borough Council,29UM,15/03/2017,1148980,735.00,REARDON PROPERTIES,                         ,HOUSING SERVICES,B & B - Landlords Payments,Housing
Swale Borough Council,29UM,15/03/2017,1149029,490.00,REARDON PROPERTIES,                         ,HOUSING SERVICES,B & B - Landlords Payments,Housing
Swale Borough Council,29UM,15/03/2017,1149030,875.00,REARDON PROPERTIES,                         ,HOUSING SERVICES,B & B - Landlords Payments,Housing
Swale Borough Council,29UM,15/03/2017,1149031,490.00,REARDON PROPERTIES,                         ,HOUSING SERVICES,B & B - Landlords Payments,Housing
Swale Borough Council,29UM,15/03/2017,1149032,560.00,REARDON PROPERTIES,                         ,HOUSING SERVICES,B & B - Landlords Payments,Housing
Swale Borough Council,29UM,15/03/2017,1148820,435.00,ROSPA,3021397                  ,CHIEF EXECUTIVE,Prizes/Awards,Corporate & Democratic Core
Swale Borough Council,29UM,15/03/2017,1148998,960.00,RP AUSTIN,                         ,MKS LEGAL SERVICES,Agency/Contract Staff,Internal Trading Cost Centres
Swale Borough Council,29UM,15/03/2017,1148769,375.00,RURAL PLANNING LTD,4426249                  ,PLANNING SERVICES,Fees And Services,Planning and Development Services
Swale Borough Council,29UM,15/03/2017,1149137,2968.00,SERCO PAISA LTD - (DT),04908482                 ,LEISURE & OPEN SPACES,Contracts,Cultural and Related Services
Swale Borough Council,29UM,15/03/2017,1149138,2968.00,SERCO PAISA LTD - (DT),04908482                 ,LEISURE & OPEN SPACES,Contracts,Cultural and Related Services
Swale Borough Council,29UM,15/03/2017,1149017,606.68,SHAW AND SONS LTD,                         ,DEMOCRATIC & ELECTORAL SERVICES,Stationery,Ledger/Suspense Codes
Swale Borough Council,29UM,15/03/2017,1149007,432.00,SITTINGBOURNE CABS,10307368                 ,CHIEF EXECUTIVE,Coaches / Minibus,Corporate & Democratic Core
Swale Borough Council,29UM,15/03/2017,1148882,250.00,SITTINGBOURNE HERITAGE MUSEUM,                         ,COMMUNITY SAFETY,Grants & Subscriptions,Central Services to the Public
Swale Borough Council,29UM,15/03/2017,1148889,450.00,SITTINGBOURNE IN BLOOM,                         ,COMMUNITY SAFETY,Grants & Subscriptions,Central Services to the Public
Swale Borough Council,29UM,15/03/2017,1148969,1000.00,SITTINGBOURNE RUGBY CLUB,                         ,TOURISM & SPORTS DEVELOPMENT,Grants & Subscriptions,Cultural and Related Services
Swale Borough Council,29UM,15/03/2017,1148816,1649.47,SOUTH EAST WATER,2679874                  ,CONTRACT & PROCUREMENT,Water - Metered,Environmental and Regulatory Services
Swale Borough Council,29UM,15/03/2017,1148815,1133.80,SOUTHERN WATER SERVICES LIMITED,2366670                  ,CONTRACT & PROCUREMENT,Water - Metered,Environmental and Regulatory Services
Swale Borough Council,29UM,15/03/2017,1149024,609.43,SOUTHERN WATER SERVICES LIMITED,2366670                  ,LEISURE & OPEN SPACES,Water - Metered,Cultural and Related Services
Swale Borough Council,29UM,15/03/2017,1148915,552.50,REDACTED PERSONAL INFORMATION,                         ,HOUSING SERVICES,Fees And Services,Housing
Swale Borough Council,29UM,15/03/2017,1148886,400.00,SWAMPYS ANIMAL RESCUE,                         ,COMMUNITY SAFETY,Grants & Subscriptions,Central Services to the Public
Swale Borough Council,29UM,15/03/2017,1148421,1295.00,THE OYSTER PARTNERSHIP,05020374                 ,PLANNING SERVICES,Agency/Contract Staff,Internal Trading Cost Centres
Swale Borough Council,29UM,15/03/2017,1148580,1268.75,THE OYSTER PARTNERSHIP,05020374                 ,PLANNING SERVICES,Agency/Contract Staff,Internal Trading Cost Centres
Swale Borough Council,29UM,15/03/2017,1148768,1295.00,THE OYSTER PARTNERSHIP,05020374                 ,PLANNING SERVICES,Agency/Contract Staff,Internal Trading Cost Centres
Swale Borough Council,29UM,15/03/2017,1148800,17532.00,TUNBRIDGE WELLS BOROUGH COUNCIL,                         ,MKS ENVIRONMENTAL SERVICES,MKS Charges for Environmental Services,Internal Trading Cost Centres
Swale Borough Council,29UM,15/03/2017,1148967,1250.00,TUNSTALL SCHOOL PARENT TEACHER ASSOC.,                         ,COMMUNITY SAFETY,Grants & Subscriptions,Central Services to the Public
Swale Borough Council,29UM,15/03/2017,1148809,296.28,VANITORIALS LIMITED,3952938                  ,PROPERTY SERVICES,Cleaning Materials,Internal Trading Cost Centres
Swale Borough Council,29UM,15/03/2017,1148991,378.00,VENN GROUP LIMITED,                         ,MKS LEGAL SERVICES,Agency/Contract Staff,Internal Trading Cost Centres
Swale Borough Council,29UM,15/03/2017,1148992,1230.00,VENN GROUP LIMITED,                         ,MKS LEGAL SERVICES,Agency/Contract Staff,Internal Trading Cost Centres
Swale Borough Council,29UM,15/03/2017,1148443,1082.25,VIVID RESOURCING LIMITED,06459262                 ,PLANNING SERVICES,Agency/Contract Staff,Internal Trading Cost Centres
Swale Borough Council,29UM,15/03/2017,1148584,1608.75,VIVID RESOURCING LIMITED,06459262                 ,PLANNING SERVICES,Agency/Contract Staff,Internal Trading Cost Centres
Swale Borough Council,29UM,15/03/2017,1148767,1511.25,VIVID RESOURCING LIMITED,06459262                 ,PLANNING SERVICES,Agency/Contract Staff,Internal Trading Cost Centres
Swale Borough Council,29UM,15/03/2017,1148981,1423.50,VIVID RESOURCING LIMITED,06459262                 ,PLANNING SERVICES,Agency/Contract Staff,Internal Trading Cost Centres
Swale Borough Council,29UM,15/03/2017,1148982,1225.00,VIVID RESOURCING LIMITED,06459262                 ,PLANNING SERVICES,Agency/Contract Staff,Internal Trading Cost Centres
Swale Borough Council,29UM,15/03/2017,1148266,763.70,WHISTL UK LIMITED,04417047                 ,REVENUE SERVICES,Postage,Central Services to the Public
Swale Borough Council,29UM,15/03/2017,1148266,2.47,WHISTL UK LIMITED,04417047                 ,PLANNING SERVICES,Postage,Planning and Development Services
Swale Borough Council,29UM,15/03/2017,1148266,381.85,WHISTL UK LIMITED,04417047                 ,REVENUE SERVICES,Postage,Housing
Swale Borough Council,29UM,15/03/2017,1148266,26.47,WHISTL UK LIMITED,04417047                 ,LEISURE & OPEN SPACES,Postage,Internal Trading Cost Centres
Swale Borough Council,29UM,15/03/2017,1148266,12.79,WHISTL UK LIMITED,04417047                 ,CAR PARKS,Postage,Internal Trading Cost Centres
Swale Borough Council,29UM,15/03/2017,1148266,3.26,WHISTL UK LIMITED,04417047                 ,ECONOMIC DEVELOPMENT,Postage,Internal Trading Cost Centres
Swale Borough Council,29UM,15/03/2017,1148266,63.04,WHISTL UK LIMITED,04417047                 ,PROPERTY SERVICES,Postage,Holding Codes
Swale Borough Council,29UM,15/03/2017,1148266,152.00,WHISTL UK LIMITED,04417047                 ,DEMOCRATIC & ELECTORAL SERVICES,Postage,Central Services to the Public
Swale Borough Council,29UM,15/03/2017,1148426,550.78,WHISTL UK LIMITED,04417047                 ,REVENUE SERVICES,Postage,Central Services to the Public
Swale Borough Council,29UM,15/03/2017,1148426,2.23,WHISTL UK LIMITED,04417047                 ,PLANNING SERVICES,Postage,Planning and Development Services
Swale Borough Council,29UM,15/03/2017,1148426,275.39,WHISTL UK LIMITED,04417047                 ,REVENUE SERVICES,Postage,Housing
Swale Borough Council,29UM,15/03/2017,1148426,0.27,WHISTL UK LIMITED,04417047                 ,LEISURE & OPEN SPACES,Postage,Internal Trading Cost Centres
Swale Borough Council,29UM,15/03/2017,1148426,16.51,WHISTL UK LIMITED,04417047                 ,CAR PARKS,Postage,Internal Trading Cost Centres
Swale Borough Council,29UM,15/03/2017,1148426,1.03,WHISTL UK LIMITED,04417047                 ,ECONOMIC DEVELOPMENT,Postage,Internal Trading Cost Centres
Swale Borough Council,29UM,15/03/2017,1148426,68.02,WHISTL UK LIMITED,04417047                 ,PROPERTY SERVICES,Postage,Holding Codes
Swale Borough Council,29UM,15/03/2017,1148426,121.72,WHISTL UK LIMITED,04417047                 ,DEMOCRATIC & ELECTORAL SERVICES,Postage,Central Services to the Public
Swale Borough Council,29UM,15/03/2017,1148534,868.76,WHISTL UK LIMITED,04417047                 ,REVENUE SERVICES,Postage,Central Services to the Public
Swale Borough Council,29UM,15/03/2017,1148534,5.65,WHISTL UK LIMITED,04417047                 ,PLANNING SERVICES,Postage,Planning and Development Services
Swale Borough Council,29UM,15/03/2017,1148534,434.37,WHISTL UK LIMITED,04417047                 ,REVENUE SERVICES,Postage,Housing
Swale Borough Council,29UM,15/03/2017,1148534,12.78,WHISTL UK LIMITED,04417047                 ,LEISURE & OPEN SPACES,Postage,Internal Trading Cost Centres
Swale Borough Council,29UM,15/03/2017,1148534,14.22,WHISTL UK LIMITED,04417047                 ,CAR PARKS,Postage,Internal Trading Cost Centres
Swale Borough Council,29UM,15/03/2017,1148534,0.27,WHISTL UK LIMITED,04417047                 ,ECONOMIC DEVELOPMENT,Postage,Internal Trading Cost Centres
Swale Borough Council,29UM,15/03/2017,1148534,321.11,WHISTL UK LIMITED,04417047                 ,PROPERTY SERVICES,Postage,Holding Codes
Swale Borough Council,29UM,15/03/2017,1148534,61.06,WHISTL UK LIMITED,04417047                 ,DEMOCRATIC & ELECTORAL SERVICES,Postage,Central Services to the Public
Swale Borough Council,29UM,15/03/2017,1148762,642.49,WHISTL UK LIMITED,04417047                 ,REVENUE SERVICES,Postage,Central Services to the Public
Swale Borough Council,29UM,15/03/2017,1148762,3.34,WHISTL UK LIMITED,04417047                 ,PLANNING SERVICES,Postage,Planning and Development Services
Swale Borough Council,29UM,15/03/2017,1148762,321.24,WHISTL UK LIMITED,04417047                 ,REVENUE SERVICES,Postage,Housing
Swale Borough Council,29UM,15/03/2017,1148762,3.33,WHISTL UK LIMITED,04417047                 ,LEISURE & OPEN SPACES,Postage,Internal Trading Cost Centres
Swale Borough Council,29UM,15/03/2017,1148762,19.45,WHISTL UK LIMITED,04417047                 ,CAR PARKS,Postage,Internal Trading Cost Centres
Swale Borough Council,29UM,15/03/2017,1148762,53.44,WHISTL UK LIMITED,04417047                 ,PROPERTY SERVICES,Postage,Holding Codes
Swale Borough Council,29UM,15/03/2017,1148762,84.74,WHISTL UK LIMITED,04417047                 ,DEMOCRATIC & ELECTORAL SERVICES,Postage,Central Services to the Public
Swale Borough Council,29UM,22/03/2017,1149277,622.98,ACORN MAINTENANCE SERVICES,3546898                  ,HOUSING SERVICES,Housing Renovation Grants,Not used in this Structure
Swale Borough Council,29UM,22/03/2017,1149038,5095.00,ALCIUM SOFTWARE LIMITED,4157769                  ,ECONOMIC DEVELOPMENT,Fees And Services,Planning and Development Services
Swale Borough Council,29UM,22/03/2017,1148792,1033.23,ALLPAY LTD,02933191                 ,REVENUE SERVICES,Bank Charges Pay Point,Central Services to the Public
Swale Borough Council,29UM,22/03/2017,1148792,43.70,ALLPAY LTD,02933191                 ,REVENUE SERVICES,Bank Charges Pay Point,Central Services to the Public
Swale Borough Council,29UM,22/03/2017,1148792,54.38,ALLPAY LTD,02933191                 ,REVENUE SERVICES,Bank Charges Pay Point,Housing
Swale Borough Council,29UM,22/03/2017,1148792,2.30,ALLPAY LTD,02933191                 ,REVENUE SERVICES,Bank Charges Pay Point,Housing
Swale Borough Council,29UM,22/03/2017,1148792,695.00,ALLPAY LTD,02933191                 ,EXCHEQUER,Computer Equipment & Materials,Internal Trading Cost Centres
Swale Borough Council,29UM,22/03/2017,1148792,2145.00,ALLPAY LTD,02933191                 ,FINANCIAL SERVICES,Performance Fund Expenditure,Ledger/Suspense Codes
Swale Borough Council,29UM,22/03/2017,1148793,20.02,ALLPAY LTD,02933191                 ,REVENUE SERVICES,Bank Charges Pay Point,Central Services to the Public
Swale Borough Council,29UM,22/03/2017,1148793,682.39,ALLPAY LTD,02933191                 ,EXCHEQUER,Computer Equipment & Materials,Internal Trading Cost Centres
Swale Borough Council,29UM,22/03/2017,1148793,10.00,ALLPAY LTD,02933191                 ,EXCHEQUER,Bank Charges Pay Point,Internal Trading Cost Centres
Swale Borough Council,29UM,22/03/2017,1149278,1935.00,ASCENDIT LIFTS LTD,3493530                  ,HOUSING SERVICES,Housing Renovation Grants,Not used in this Structure
Swale Borough Council,29UM,22/03/2017,1149107,2014.39,B W MAY AND SON LTD,1016572                  ,LEISURE & OPEN SPACES,Insurance Work-Buildngs Maint,Cultural and Related Services
Swale Borough Council,29UM,22/03/2017,1149107,110.61,B W MAY AND SON LTD,1016572                  ,LEISURE & OPEN SPACES,Insurance - Excess,Cultural and Related Services
Swale Borough Council,29UM,22/03/2017,1149338,3261.06,BLENWOOD LTD,4383277                  ,LEISURE & OPEN SPACES,Grounds Maint Suspense,Cultural and Related Services
Swale Borough Council,29UM,22/03/2017,1149339,96740.25,BLENWOOD LTD,4383277                  ,LEISURE & OPEN SPACES,Grounds Maint Suspense,Cultural and Related Services
Swale Borough Council,29UM,22/03/2017,1149267,1000.00,BLUE TOWN REMEMBERED,                         ,COMMUNITY SAFETY,Grants & Subscriptions,Central Services to the Public
Swale Borough Council,29UM,22/03/2017,1149130,29175.73,BMR CONSTRUCTION LTD,08434080                 ,COMMUNITY SAFETY,Capitalised Fees And Charges,Not used in this Structure
Swale Borough Council,29UM,22/03/2017,1149091,1230.00,BOURNES OF SITTINGBOURNE,                         ,MKS ENVIRONMENTAL SERVICES,Funeral Expenses,Environmental and Regulatory Services
Swale Borough Council,29UM,22/03/2017,1149035,950.00,CART ASSIST LIMITED,                         ,COMMISSIONING & CUSTOMER CONTACT,Performance Fund Expenditure,Ledger/Suspense Codes
Swale Borough Council,29UM,22/03/2017,1149128,480.00,CIEH,                         ,MKS ENVIRONMENTAL SERVICES,Payments in Year,Ledger/Suspense Codes
Swale Borough Council,29UM,22/03/2017,1149111,6832.23,COMENSURA LTD,04085767                 ,HUMAN RESOURCES,Agency/Contract Staff,Internal Trading Cost Centres
Swale Borough Council,29UM,22/03/2017,1149335,348.62,CO-OP BANK PLC - (DT),                         ,REVENUE SERVICES,Bank Charges Pay Point,Central Services to the Public
Swale Borough Council,29UM,22/03/2017,1149335,19.37,CO-OP BANK PLC - (DT),                         ,REVENUE SERVICES,Bank Charges Pay Point,Housing
Swale Borough Council,29UM,22/03/2017,1149335,19.37,CO-OP BANK PLC - (DT),                         ,EXCHEQUER,Bank Charges Pay Point,Internal Trading Cost Centres
Swale Borough Council,29UM,22/03/2017,1149023,350.00,F L BEADLE & SONS LTD,                         ,CAR PARKS,Maintenance - Grounds,Highway and Transport Services
Swale Borough Council,29UM,22/03/2017,1149185,400.00,FAV. COMM. CHRISTMAS LIGHTS COMM.,                         ,COMMUNITY SAFETY,Grants & Subscriptions,Central Services to the Public
Swale Borough Council,29UM,22/03/2017,1149095,300.00,FAVERSHAM ASSISTANCE CENTRE (FACE),                         ,COMMUNITY SAFETY,Grants & Subscriptions,Central Services to the Public
Swale Borough Council,29UM,22/03/2017,1149234,295.00,FIRE & SECURITY CONSULTANCY LTD,5946022                  ,PROPERTY SERVICES,Service Contracts,Corporate & Democratic Core
Swale Borough Council,29UM,22/03/2017,1149098,7725.97,HUBBARD & HOUGHTON CONSTRUCTION LTD,                         ,HOUSING SERVICES,Payments in Year,Ledger/Suspense Codes
Swale Borough Council,29UM,22/03/2017,1149247,550.00,HUBBARD & HOUGHTON CONSTRUCTION LTD,                         ,HOUSING SERVICES,Staying Put small repairs (contractors),Housing
Swale Borough Council,29UM,22/03/2017,1149248,320.00,HUBBARD & HOUGHTON CONSTRUCTION LTD,                         ,HOUSING SERVICES,Staying Put small repairs (contractors),Housing
Swale Borough Council,29UM,22/03/2017,1149282,7596.88,HUBBARD & HOUGHTON CONSTRUCTION LTD,                         ,HOUSING SERVICES,Housing Renovation Grants,Not used in this Structure
Swale Borough Council,29UM,22/03/2017,1149283,5400.00,HUBBARD & HOUGHTON CONSTRUCTION LTD,                         ,HOUSING SERVICES,Housing Renovation Grants,Not used in this Structure
Swale Borough Council,29UM,22/03/2017,1149116,640.00,INFORM CPI LTD,                         ,REVENUE SERVICES,NNDR Additional Rateable Values,Central Services to the Public
Swale Borough Council,29UM,22/03/2017,1148902,3900.00,J N CLEARANCE,                         ,CONTRACT & PROCUREMENT,"Clearance Of Waste,Fly Tipping",Environmental and Regulatory Services
Swale Borough Council,29UM,22/03/2017,1149189,1000.00,KEMSLEY COMMUNITY CENTRE,                         ,COMMUNITY SAFETY,Grants & Subscriptions,Central Services to the Public
Swale Borough Council,29UM,22/03/2017,1149109,1169.12,KENT COUNTY COUNCIL,                         ,SERVICE DELIVERY,Fees And Services,Highway and Transport Services
Swale Borough Council,29UM,22/03/2017,1149152,2885.70,KENT COUNTY COUNCIL,                         ,COMMISSIONING & CUSTOMER CONTACT,Contracts,Internal Trading Cost Centres
Swale Borough Council,29UM,22/03/2017,1149033,2877.27,KENT COUNTY COUNCIL (KCS),                         ,PROPERTY SERVICES,Gas,Corporate & Democratic Core
Swale Borough Council,29UM,22/03/2017,1149092,320.00,KENT INVICTA CHAMBER OF COMMERCE,2794615                  ,ECONOMIC DEVELOPMENT,Fees And Services,Planning and Development Services
Swale Borough Council,29UM,22/03/2017,1149108,7654.90,KINGDOM SECURITY LIMITED,2795197                  ,ENVIRONMENTAL RESPONSE TEAM,Fees And Services,Planning and Development Services
Swale Borough Council,29UM,22/03/2017,1149199,750.00,LEMAR LIMITED,04350292                 ,LEISURE & OPEN SPACES,Maintenance - Grounds,Environmental and Regulatory Services
Swale Borough Council,29UM,22/03/2017,1149199,630.00,LEMAR LIMITED,04350292                 ,LEISURE & OPEN SPACES,Maintenance - Grounds,Environmental and Regulatory Services
Swale Borough Council,29UM,22/03/2017,1149201,225.00,LEMAR LIMITED,04350292                 ,SERVICE DELIVERY,Private Contractors - CIS,Highway and Transport Services
Swale Borough Council,29UM,22/03/2017,1149201,150.00,LEMAR LIMITED,04350292                 ,SERVICE DELIVERY,Private Contractors - CIS,Highway and Transport Services
Swale Borough Council,29UM,22/03/2017,1149176,627.40,LLOYDS BANK - (DT),                         ,FINANCIAL SERVICES,Bank Charges,Corporate & Democratic Core
Swale Borough Council,29UM,22/03/2017,1148206,2072.72,LOGOTECH SYSTEMS,2529444                  ,FINANCIAL SERVICES,Computer Equipment & Materials,Corporate & Democratic Core
Swale Borough Council,29UM,22/03/2017,1149011,735.00,M A WOOD,                         ,CONTRACT & PROCUREMENT,Equipment Maintenance,Environmental and Regulatory Services
Swale Borough Council,29UM,22/03/2017,1149012,250.00,M A WOOD,                         ,CONTRACT & PROCUREMENT,"Clearance Of Waste,Fly Tipping",Environmental and Regulatory Services
Swale Borough Council,29UM,22/03/2017,1149013,1760.00,M A WOOD,                         ,CONTRACT & PROCUREMENT,Equipment Maintenance,Environmental and Regulatory Services
Swale Borough Council,29UM,22/03/2017,1149212,252.00,M.T.S. CLEANSING SERVICES LTD,2045340                  ,LEISURE & OPEN SPACES,Clearing Cesspools,Cultural and Related Services
Swale Borough Council,29UM,22/03/2017,1146832,24027.44,MAIDSTONE BOROUGH COUNCIL,                         ,MKS ICT,Computer Equipment & Materials,Internal Trading Cost Centres
Swale Borough Council,29UM,22/03/2017,1146876,373.14,MAIDSTONE BOROUGH COUNCIL,                         ,MKS ICT,Computer Equipment & Materials,Internal Trading Cost Centres
Swale Borough Council,29UM,22/03/2017,1147404,16300.00,MAIDSTONE BOROUGH COUNCIL,                         ,MKS ICT,MKS Charges for ICT,Internal Trading Cost Centres
Swale Borough Council,29UM,22/03/2017,1147567,11433.78,MAIDSTONE BOROUGH COUNCIL,                         ,MKS ICT,Computer Equipment & Materials,Internal Trading Cost Centres
Swale Borough Council,29UM,22/03/2017,1148268,12368.29,MAIDSTONE BOROUGH COUNCIL,                         ,MKS ICT,Computer Equipment & Materials,Internal Trading Cost Centres
Swale Borough Council,29UM,22/03/2017,1148670,10772.70,MAIDSTONE BOROUGH COUNCIL,                         ,CONTRACT & PROCUREMENT,Private Contractors,Environmental and Regulatory Services
Swale Borough Council,29UM,22/03/2017,1148927,12759.04,MAIDSTONE BOROUGH COUNCIL,                         ,MKS ICT,Computer Equipment & Materials,Internal Trading Cost Centres
Swale Borough Council,29UM,22/03/2017,1149115,70155.95,MAIDSTONE BOROUGH COUNCIL,                         ,CONTRACT & PROCUREMENT,Private Contractors,Environmental and Regulatory Services
Swale Borough Council,29UM,22/03/2017,1149115,189853.74,MAIDSTONE BOROUGH COUNCIL,                         ,CONTRACT & PROCUREMENT,Private Contractors,Environmental and Regulatory Services
Swale Borough Council,29UM,22/03/2017,1149345,929163.00,MAIDSTONE BOROUGH COUNCIL - DT,                         ,FINANCIAL SERVICES,Tariff to Gvt,Taxation and Non-Specific Grant Income
Swale Borough Council,29UM,22/03/2017,1149073,795.60,MARTIN CRANFIELD ASSOCIATES LIMITED,05210576                 ,MKS ENVIRONMENTAL SERVICES,Private Contractors,Environmental and Regulatory Services
Swale Borough Council,29UM,22/03/2017,1149027,1702.00,MATCHTECH,4426336                  ,PLANNING SERVICES,Agency/Contract Staff,Internal Trading Cost Centres
Swale Borough Council,29UM,22/03/2017,1149280,5080.00,MCL (KENT) LIMITED,                         ,HOUSING SERVICES,Housing Renovation Grants,Not used in this Structure
Swale Borough Council,29UM,22/03/2017,1149266,1000.00,MEDWAY CARES,                         ,TOURISM & SPORTS DEVELOPMENT,Grants & Subscriptions,Cultural and Related Services
Swale Borough Council,29UM,22/03/2017,1149209,55491.75,MEDWAY COUNCIL,                         ,COMMUNITY SAFETY,CCTV Monitoring Service,Environmental and Regulatory Services
Swale Borough Council,29UM,22/03/2017,1149262,934.00,MERLINS COMPLEX LIMITED,                         ,DEMOCRATIC & ELECTORAL SERVICES,Receipts in Year,Ledger/Suspense Codes
Swale Borough Council,29UM,22/03/2017,1149279,1418.10,MOBILITYBASE LTD,09251588                 ,HOUSING SERVICES,Housing Renovation Grants,Not used in this Structure
Swale Borough Council,29UM,22/03/2017,1149210,295.00,MORGANA SYSTEMS LTD,1335506                  ,PROPERTY SERVICES,Payments in Year,Ledger/Suspense Codes
Swale Borough Council,29UM,22/03/2017,1149104,500.00,MR J W GATES,                         ,SERVICE DELIVERY,Private Contractors - CIS,Environmental and Regulatory Services
Swale Borough Council,29UM,22/03/2017,1149104,375.00,MR J W GATES,                         ,SERVICE DELIVERY,Private Contractors - CIS,Environmental and Regulatory Services
Swale Borough Council,29UM,22/03/2017,1149288,625.00,REDACTED PERSONAL INFORMATION,                         ,HOUSING SERVICES,Homelessness  Prevention Services,Housing
Swale Borough Council,29UM,22/03/2017,1149289,1000.00,REDACTED PERSONAL INFORMATION,                         ,HOUSING SERVICES,Homelessness  Prevention Services,Housing
Swale Borough Council,29UM,22/03/2017,1149215,2862.26,NAGELS MULTIGRAPHICS T/A NMG PRINT,5501891                  ,CAR PARKS,External Permit Printing,Highway and Transport Services
Swale Borough Council,29UM,22/03/2017,1149172,576.90,REDACTED PERSONAL INFORMATION,                         ,SERVICE DELIVERY,Private Contractors - CIS,Environmental and Regulatory Services
Swale Borough Council,29UM,22/03/2017,1149250,928.49,NORTHSHORE DESIGNS LIMITED,                         ,ENVIRONMENTAL RESPONSE TEAM,Protective Clothing,Internal Trading Cost Centres
Swale Borough Council,29UM,22/03/2017,1149043,250.14,NPOWER,                         ,CAR PARKS,Electricity,Highway and Transport Services
Swale Borough Council,29UM,22/03/2017,1148826,26028.00,PARAMOUNT INDEPENDENT PROPERTY SERVICES,                         ,HOUSING SERVICES,B & B - Landlords Payments,Housing
Swale Borough Council,29UM,22/03/2017,1149174,525.61,PREMIER PAPER GROUP LTD,                         ,PROPERTY SERVICES,Paper,Internal Trading Cost Centres
Swale Borough Council,29UM,22/03/2017,1149076,8500.00,QUINNEYS LTD,4355510                  ,SERVICE DELIVERY,Private Contractors - CIS,Cultural and Related Services
Swale Borough Council,29UM,22/03/2017,1149076,7026.66,QUINNEYS LTD,4355510                  ,SERVICE DELIVERY,Private Contractors - CIS,Cultural and Related Services
Swale Borough Council,29UM,22/03/2017,1149235,2655.40,ROYAL MAIL GROUP LTD,4138203                  ,PROPERTY SERVICES,Postage,Holding Codes
Swale Borough Council,29UM,22/03/2017,1149145,1166.67,S & B CAR & VAN HIRE LTD,                         ,FINANCIAL SERVICES,Awaiting Allocation,Ledger/Suspense Codes
Swale Borough Council,29UM,22/03/2017,1149284,4164.00,REDACTED PERSONAL INFORMATION,                         ,HOUSING SERVICES,Housing Renovation Grants,Not used in this Structure
Swale Borough Council,29UM,22/03/2017,1149074,65968.80,SERCO LEISURE OPERATING LIMITED,04687478                 ,LEISURE & OPEN SPACES,Procurement Contracts Only,Cultural and Related Services
Swale Borough Council,29UM,22/03/2017,1149264,900.00,SHEPPEY DISTRICT SCOUTS,                         ,COMMUNITY SAFETY,Grants & Subscriptions,Central Services to the Public
Swale Borough Council,29UM,22/03/2017,1149190,845.00,SHEPPEY MATTERS,3946296                  ,COMMUNITY SAFETY,Grants & Subscriptions,Central Services to the Public
Swale Borough Council,29UM,22/03/2017,1149337,30.81,SODEXO MOTIVATION SOLUTIONS UK LTD,2680629                  ,HUMAN RESOURCES,Fees And Services,Corporate & Democratic Core
Swale Borough Council,29UM,22/03/2017,1148873,3108.65,SOUTHERN COMMUNICATIONS LTD,1328040                  ,MKS ICT,Telephone,Corporate & Democratic Core
Swale Borough Council,29UM,22/03/2017,1148814,2213.24,SOUTHERN WATER SERVICES LIMITED,2366670                  ,CONTRACT & PROCUREMENT,Water - Metered,Environmental and Regulatory Services
Swale Borough Council,29UM,22/03/2017,1149061,2342.52,SOUTHERN WATER SERVICES LIMITED,2366670                  ,CONTRACT & PROCUREMENT,Water - Metered,Environmental and Regulatory Services
Swale Borough Council,29UM,22/03/2017,1149062,440.32,SOUTHERN WATER SERVICES LIMITED,2366670                  ,CONTRACT & PROCUREMENT,Water - Metered,Environmental and Regulatory Services
Swale Borough Council,29UM,22/03/2017,1149063,2817.93,SOUTHERN WATER SERVICES LIMITED,2366670                  ,CONTRACT & PROCUREMENT,Water - Metered,Environmental and Regulatory Services
Swale Borough Council,29UM,22/03/2017,1149173,954.00,STREETMASTER PRODUCTS,                         ,LEISURE & OPEN SPACES,Maintenance - Grounds,Cultural and Related Services
Swale Borough Council,29UM,22/03/2017,1149085,770.00,SURVEY EXPRESS SERVICES,1417291                  ,HOUSING SERVICES,Equipment Purchase,Housing
Swale Borough Council,29UM,22/03/2017,1149085,154.00,SURVEY EXPRESS SERVICES,1417291                  ,HOUSING SERVICES,Equipment Purchase,Housing
Swale Borough Council,29UM,22/03/2017,1149018,588.40,TECO INTERIORS LTD,                         ,PROPERTY SERVICES,Non-Planned Building Maintenance,Corporate & Democratic Core
Swale Borough Council,29UM,22/03/2017,1149019,2763.97,TECO INTERIORS LTD,                         ,PROPERTY SERVICES,Buildings Maintenance,Corporate & Democratic Core
Swale Borough Council,29UM,22/03/2017,1149020,4265.85,TECO INTERIORS LTD,                         ,PROPERTY SERVICES,Buildings Maintenance,Corporate & Democratic Core
Swale Borough Council,29UM,22/03/2017,1149021,729.64,TECO INTERIORS LTD,                         ,PROPERTY SERVICES,Buildings Maintenance,Corporate & Democratic Core
Swale Borough Council,29UM,22/03/2017,1148910,2437.50,THE BARNYARD,                         ,ECONOMY & COMMUNITIES,Communities Fund Expenditure,Ledger/Suspense Codes
Swale Borough Council,29UM,22/03/2017,1148910,487.50,THE BARNYARD,                         ,ECONOMY & COMMUNITIES,Communities Fund Expenditure,Ledger/Suspense Codes
Swale Borough Council,29UM,22/03/2017,1149265,500.00,THE FRIENDS OF WISDOM HOSPICE,                         ,COMMUNITY SAFETY,Grants & Subscriptions,Central Services to the Public
Swale Borough Council,29UM,22/03/2017,1149148,250.00,THE SALVATION ARMY,                         ,COMMUNITY SAFETY,Grants & Subscriptions,Central Services to the Public
Swale Borough Council,29UM,22/03/2017,1149268,300.00,THE SHEPPEY FOOD CLUB,                         ,COMMUNITY SAFETY,Grants & Subscriptions,Central Services to the Public
Swale Borough Council,29UM,22/03/2017,1149129,990.00,USTIGATE LIMITED,02876596                 ,LEISURE & OPEN SPACES,Consultancy/Specialist Advice,Cultural and Related Services
Swale Borough Council,29UM,22/03/2017,1149167,1288.14,VENN GROUP LIMITED,                         ,MKS LEGAL SERVICES,Agency/Contract Staff,Internal Trading Cost Centres
Swale Borough Council,29UM,22/03/2017,1149151,1268.75,VIVID RESOURCING LIMITED,06459262                 ,PLANNING SERVICES,Agency/Contract Staff,Internal Trading Cost Centres
Swale Borough Council,29UM,22/03/2017,1149094,400.00,WEST FAVERSHAM COMMUNITY ASSOCIATION,                         ,COMMUNITY SAFETY,Grants & Subscriptions,Central Services to the Public
Swale Borough Council,29UM,22/03/2017,1148954,368.64,WHISTL UK LIMITED,04417047                 ,REVENUE SERVICES,Postage,Central Services to the Public
Swale Borough Council,29UM,22/03/2017,1148954,0.54,WHISTL UK LIMITED,04417047                 ,PLANNING SERVICES,Postage,Planning and Development Services
Swale Borough Council,29UM,22/03/2017,1148954,184.31,WHISTL UK LIMITED,04417047                 ,REVENUE SERVICES,Postage,Housing
Swale Borough Council,29UM,22/03/2017,1148954,5.19,WHISTL UK LIMITED,04417047                 ,LEISURE & OPEN SPACES,Postage,Internal Trading Cost Centres
Swale Borough Council,29UM,22/03/2017,1148954,16.11,WHISTL UK LIMITED,04417047                 ,CAR PARKS,Postage,Internal Trading Cost Centres
Swale Borough Council,29UM,22/03/2017,1148954,0.27,WHISTL UK LIMITED,04417047                 ,ECONOMIC DEVELOPMENT,Postage,Internal Trading Cost Centres
Swale Borough Council,29UM,22/03/2017,1148954,76.39,WHISTL UK LIMITED,04417047                 ,PROPERTY SERVICES,Postage,Holding Codes
Swale Borough Council,29UM,22/03/2017,1148954,120.01,WHISTL UK LIMITED,04417047                 ,DEMOCRATIC & ELECTORAL SERVICES,Postage,Central Services to the Public
Swale Borough Council,29UM,22/03/2017,1148993,7030.00,WILKS HEAD & EVE,OC315743                 ,FINANCIAL SERVICES,Fees And Services,Internal Trading Cost Centres
Swale Borough Council,29UM,22/03/2017,1149227,320.00,WILLOW TREE HOME SOLUTIONS LTD,                         ,HOUSING SERVICES,Staying Put small repairs (contractors),Housing
Swale Borough Council,29UM,22/03/2017,1149229,438.00,WILLOW TREE HOME SOLUTIONS LTD,                         ,HOUSING SERVICES,Staying Put small repairs (contractors),Housing
Swale Borough Council,29UM,22/03/2017,1149239,416.00,WILLOW TREE HOME SOLUTIONS LTD,                         ,HOUSING SERVICES,Staying Put small repairs (contractors),Housing
Swale Borough Council,29UM,22/03/2017,1149281,8854.96,WILLOW TREE HOME SOLUTIONS LTD,                         ,HOUSING SERVICES,Housing Renovation Grants,Not used in this Structure
Swale Borough Council,29UM,23/03/2017,1149226,-900.00,SHEPPEY CATHOLIC CHURCH,                         ,COMMUNITY SAFETY,Grants & Subscriptions,Central Services to the Public
Swale Borough Council,29UM,29/03/2017,1149521,5898.60,ACORN MAINTENANCE SERVICES,3546898                  ,HOUSING SERVICES,Housing Renovation Grants,Not used in this Structure
Swale Borough Council,29UM,29/03/2017,1149522,16362.00,ACORN MAINTENANCE SERVICES,3546898                  ,HOUSING SERVICES,Housing Renovation Grants,Not used in this Structure
Swale Borough Council,29UM,29/03/2017,1149067,943.00,AKW MEDI-CARE LTD,2764920                  ,HOUSING SERVICES,Staying Put - Materials,Housing
Swale Borough Council,29UM,29/03/2017,1149490,900.00,BLENWOOD LTD,4383277                  ,LEISURE & OPEN SPACES,Maintenance - Grounds,Cultural and Related Services
Swale Borough Council,29UM,29/03/2017,1149312,1000.00,BORDEN FETE COMMITTEE,                         ,COMMUNITY SAFETY,Grants & Subscriptions,Central Services to the Public
Swale Borough Council,29UM,29/03/2017,1149303,2835.00,CAPITA BUSINESS SERVICES LTD,                         ,REVENUE SERVICES,Fees And Services,Housing
Swale Borough Council,29UM,29/03/2017,1149307,1295.00,CARRINGTON WEST LIMITED,07344853                 ,PLANNING SERVICES,Agency/Contract Staff,Internal Trading Cost Centres
Swale Borough Council,29UM,29/03/2017,1149405,1295.00,CARRINGTON WEST LIMITED,07344853                 ,PLANNING SERVICES,Agency/Contract Staff,Internal Trading Cost Centres
Swale Borough Council,29UM,29/03/2017,1149319,950.00,CART ASSIST LIMITED,                         ,COMMISSIONING & CUSTOMER CONTACT,Performance Fund Expenditure,Ledger/Suspense Codes
Swale Borough Council,29UM,29/03/2017,1149503,2228.33,CHILDREN AND FAMILIES LTD,                         ,COMMUNITY SAFETY,Fees And Services,Planning and Development Services
Swale Borough Council,29UM,29/03/2017,1149504,2228.33,CHILDREN AND FAMILIES LTD,                         ,COMMUNITY SAFETY,Fees And Services,Planning and Development Services
Swale Borough Council,29UM,29/03/2017,1149475,359.00,CONTRACT SECURITY SERVICES,2461362                  ,EXCHEQUER,Cash Security,Internal Trading Cost Centres
Swale Borough Council,29UM,29/03/2017,1149475,3931.20,CONTRACT SECURITY SERVICES,2461362                  ,CAR PARKS,Cash Security,Highway and Transport Services
Swale Borough Council,29UM,29/03/2017,1149430,2296.00,DCB (KENT) LIMITED,03532339                 ,LEISURE & OPEN SPACES,Non-Planned Building Maintenance,Environmental and Regulatory Services
Swale Borough Council,29UM,29/03/2017,1149430,64.00,DCB (KENT) LIMITED,03532339                 ,PROPERTY SERVICES,Non-Planned Building Maintenance,Cultural and Related Services
Swale Borough Council,29UM,29/03/2017,1149430,64.00,DCB (KENT) LIMITED,03532339                 ,HOUSING SERVICES,Non-Planned Building Maintenance,Housing
Swale Borough Council,29UM,29/03/2017,1149430,114.13,DCB (KENT) LIMITED,03532339                 ,HOUSING SERVICES,Non-Planned Building Maintenance,Housing
Swale Borough Council,29UM,29/03/2017,1149430,77.73,DCB (KENT) LIMITED,03532339                 ,PROPERTY SERVICES,Non-Planned Building Maintenance,Corporate & Democratic Core
Swale Borough Council,29UM,29/03/2017,1149430,2299.49,DCB (KENT) LIMITED,03532339                 ,PROPERTY SERVICES,Buildings Maintenance,Corporate & Democratic Core
Swale Borough Council,29UM,29/03/2017,1149430,278.74,DCB (KENT) LIMITED,03532339                 ,PROPERTY SERVICES,Non-Planned Building Maintenance,Corporate & Democratic Core
Swale Borough Council,29UM,29/03/2017,1149430,168.25,DCB (KENT) LIMITED,03532339                 ,PROPERTY SERVICES,Non-Planned Building Maintenance,Corporate & Democratic Core
Swale Borough Council,29UM,29/03/2017,1149430,64.00,DCB (KENT) LIMITED,03532339                 ,PROPERTY SERVICES,Non-Planned Building Maintenance,Corporate & Democratic Core
Swale Borough Council,29UM,29/03/2017,1149430,192.37,DCB (KENT) LIMITED,03532339                 ,LEISURE & OPEN SPACES,Non-Planned Building Maintenance,Cultural and Related Services
Swale Borough Council,29UM,29/03/2017,1149171,995.00,DOCUMENT OUTPUT SOLUTIONS UK LTD,3686010                  ,REVENUE SERVICES,Fees And Services,Housing
Swale Borough Council,29UM,29/03/2017,1149302,1250.00,DOCUMENT OUTPUT SOLUTIONS UK LTD,3686010                  ,REVENUE SERVICES,Fees And Services,Housing
Swale Borough Council,29UM,29/03/2017,1149526,10952.50,DOLPHIN STAIRLIFTS (KENT),04181846                 ,HOUSING SERVICES,Housing Renovation Grants,Not used in this Structure
Swale Borough Council,29UM,29/03/2017,1149367,2000.00,FAVERSHAM CRICKET CLUB,                         ,COMMUNITY SAFETY,Grants & Subscriptions,Central Services to the Public
Swale Borough Council,29UM,29/03/2017,1149368,1000.00,FAVERSHAM CRICKET CLUB,                         ,TOURISM & SPORTS DEVELOPMENT,Grants & Subscriptions,Cultural and Related Services
Swale Borough Council,29UM,29/03/2017,1149273,101.28,GALTEC SOLUTIONS LTD,5209602                  ,SERVICE DELIVERY,Computer Equipment & Materials,Cultural and Related Services
Swale Borough Council,29UM,29/03/2017,1149273,259.80,GALTEC SOLUTIONS LTD,5209602                  ,MKS ICT,Computer Equipment & Materials,Internal Trading Cost Centres
Swale Borough Council,29UM,29/03/2017,1149231,1365.00,GOODWIN PEST MANAGEMENT,                         ,LEISURE & OPEN SPACES,Pest Control Services,Environmental and Regulatory Services
Swale Borough Council,29UM,29/03/2017,1149509,1000.00,GORE COURT HOCKEY CLUB,                         ,TOURISM & SPORTS DEVELOPMENT,Grants & Subscriptions,Cultural and Related Services
Swale Borough Council,29UM,29/03/2017,1149304,15185.00,GRANT THORNTON UK LLP,                         ,DIRECTOR OF CORPORATE SERVICES,External Audit Fee,Corporate & Democratic Core
Swale Borough Council,29UM,29/03/2017,1149525,4679.69,HUBBARD & HOUGHTON CONSTRUCTION LTD,                         ,HOUSING SERVICES,Housing Renovation Grants,Not used in this Structure
Swale Borough Council,29UM,29/03/2017,1149523,9558.75,J & D SYSTEMS,                         ,HOUSING SERVICES,Housing Renovation Grants,Not used in this Structure
Swale Borough Council,29UM,29/03/2017,1149314,1050.00,JIMMY CENTRE COMM PROJECTS,                         ,COMMUNITY SAFETY,Grants & Subscriptions,Central Services to the Public
Swale Borough Council,29UM,29/03/2017,1149256,7802.00,KENT COUNTY COUNCIL,                         ,PLANNING SERVICES,Fees And Services,Planning and Development Services
Swale Borough Council,29UM,29/03/2017,1149285,1000.00,KENT COUNTY COUNCIL,                         ,LEISURE & OPEN SPACES,Grants & Subscriptions,Cultural and Related Services
Swale Borough Council,29UM,29/03/2017,1149353,5773.55,KENT COUNTY COUNCIL,                         ,MKS ICT,Computer Equipment & Materials,Internal Trading Cost Centres
Swale Borough Council,29UM,29/03/2017,1149358,200.00,LEMAR LIMITED,04350292                 ,SERVICE DELIVERY,Private Contractors - CIS,Highway and Transport Services
Swale Borough Council,29UM,29/03/2017,1149358,175.00,LEMAR LIMITED,04350292                 ,SERVICE DELIVERY,Private Contractors - CIS,Highway and Transport Services
Swale Borough Council,29UM,29/03/2017,1149361,400.00,LEMAR LIMITED,04350292                 ,SERVICE DELIVERY,Private Contractors - CIS,Highway and Transport Services
Swale Borough Council,29UM,29/03/2017,1149361,485.00,LEMAR LIMITED,04350292                 ,SERVICE DELIVERY,Private Contractors - CIS,Highway and Transport Services
Swale Borough Council,29UM,29/03/2017,1149362,100.00,LEMAR LIMITED,04350292                 ,SERVICE DELIVERY,Private Contractors - CIS,Highway and Transport Services
Swale Borough Council,29UM,29/03/2017,1149362,200.00,LEMAR LIMITED,04350292                 ,SERVICE DELIVERY,Private Contractors - CIS,Highway and Transport Services
Swale Borough Council,29UM,29/03/2017,1149363,200.00,LEMAR LIMITED,04350292                 ,SERVICE DELIVERY,Private Contractors - CIS,Highway and Transport Services
Swale Borough Council,29UM,29/03/2017,1149363,150.00,LEMAR LIMITED,04350292                 ,SERVICE DELIVERY,Private Contractors - CIS,Highway and Transport Services
Swale Borough Council,29UM,29/03/2017,1149350,325.00,LILAC ESTATES,                         ,HOUSING SERVICES,B & B - Landlords Payments,Housing
Swale Borough Council,29UM,29/03/2017,1149351,280.00,LILAC ESTATES,                         ,HOUSING SERVICES,B & B - Landlords Payments,Housing
Swale Borough Council,29UM,29/03/2017,1149352,280.00,LILAC ESTATES,                         ,HOUSING SERVICES,B & B - Landlords Payments,Housing
Swale Borough Council,29UM,29/03/2017,1149369,969.00,LUBBE & SONS (BULBS) LTD,836902                   ,LEISURE & OPEN SPACES,Nursery Stock,Cultural and Related Services
Swale Borough Council,29UM,29/03/2017,1149370,600.00,LUBBE & SONS (BULBS) LTD,836902                   ,LEISURE & OPEN SPACES,Nursery Stock,Cultural and Related Services
Swale Borough Council,29UM,29/03/2017,1149371,588.00,LUBBE & SONS (BULBS) LTD,836902                   ,LEISURE & OPEN SPACES,Nursery Stock,Cultural and Related Services
Swale Borough Council,29UM,29/03/2017,1149078,2835.00,MAGEES GUESTHOUSE,                         ,HOUSING SERVICES,B & B - Landlords Payments,Housing
Swale Borough Council,29UM,29/03/2017,1149311,2050.00,MAIDSTONE & MID KENT MIND,                         ,COMMUNITY SAFETY,Grants & Subscriptions,Central Services to the Public
Swale Borough Council,29UM,29/03/2017,1147405,101255.00,MAIDSTONE BOROUGH COUNCIL,                         ,MKS ICT,MKS Charges for ICT,Internal Trading Cost Centres
Swale Borough Council,29UM,29/03/2017,1149100,-15882.75,MAIDSTONE BOROUGH COUNCIL,                         ,CONTRACT & PROCUREMENT,Equipment Purchase,Environmental and Regulatory Services
Swale Borough Council,29UM,29/03/2017,1149452,255.00,MAIDSTONE BOROUGH COUNCIL,                         ,REVENUE SERVICES,Fees And Services,Central Services to the Public
Swale Borough Council,29UM,29/03/2017,1149183,1702.00,MATCHTECH,4426336                  ,PLANNING SERVICES,Agency/Contract Staff,Internal Trading Cost Centres
Swale Borough Council,29UM,29/03/2017,1149263,512.00,MAYLOW CONSTRUCTION LTD,                         ,LEISURE & OPEN SPACES,Maintenance - Grounds,Cultural and Related Services
Swale Borough Council,29UM,29/03/2017,1149270,403.00,MAYLOW CONSTRUCTION LTD,                         ,LEISURE & OPEN SPACES,Maintenance - Grounds,Cultural and Related Services
Swale Borough Council,29UM,29/03/2017,1149270,96.00,MAYLOW CONSTRUCTION LTD,                         ,LEISURE & OPEN SPACES,Maintenance - Grounds,Cultural and Related Services
Swale Borough Council,29UM,29/03/2017,1149275,1033.00,MAYLOW CONSTRUCTION LTD,                         ,LEISURE & OPEN SPACES,Maintenance - Grounds,Cultural and Related Services
Swale Borough Council,29UM,29/03/2017,1149275,1571.00,MAYLOW CONSTRUCTION LTD,                         ,LEISURE & OPEN SPACES,Maintenance - Grounds,Cultural and Related Services
Swale Borough Council,29UM,29/03/2017,1149462,437.00,MAYLOW CONSTRUCTION LTD,                         ,LEISURE & OPEN SPACES,Maintenance - Grounds,Cultural and Related Services
Swale Borough Council,29UM,29/03/2017,1149462,360.00,MAYLOW CONSTRUCTION LTD,                         ,LEISURE & OPEN SPACES,Play Equipment Maintenance - CIS,Cultural and Related Services
Swale Borough Council,29UM,29/03/2017,1149463,999.00,MAYLOW CONSTRUCTION LTD,                         ,LEISURE & OPEN SPACES,Play Equipment Maintenance - CIS,Cultural and Related Services
Swale Borough Council,29UM,29/03/2017,1149463,1083.00,MAYLOW CONSTRUCTION LTD,                         ,LEISURE & OPEN SPACES,Maintenance - Grounds,Cultural and Related Services
Swale Borough Council,29UM,29/03/2017,1149317,1760.55,MEDWAY PUBLIC SERVICES LTD,10041989                 ,COMMUNITY SAFETY,CCTV Monitoring Service,Environmental and Regulatory Services
Swale Borough Council,29UM,29/03/2017,1149443,6400.00,MEDWAY PUBLIC SERVICES LTD,10041989                 ,COMMUNITY SAFETY,CCTV Monitoring Service,Environmental and Regulatory Services
Swale Borough Council,29UM,29/03/2017,1149436,1150.00,METRIC GROUP LTD,2560839                  ,CAR PARKS,Equipment,Not used in this Structure
Swale Borough Council,29UM,29/03/2017,1149444,900.00,MILES & BARR PROPERTY MANAGEMENT LTD,                         ,HOUSING SERVICES,RDS - Rent in Advance (Supporting People),Housing
Swale Borough Council,29UM,29/03/2017,1149477,400.00,MILTON COURT PRIMARY ACADEMY,                         ,DEMOCRATIC & ELECTORAL SERVICES,Hire Of Premises,Ledger/Suspense Codes
Swale Borough Council,29UM,29/03/2017,1149449,900.00,REDACTED PERSONAL INFORMATION,                         ,HOUSING SERVICES,RDS - Landlord claim on Bond Scheme,Housing
Swale Borough Council,29UM,29/03/2017,1149373,288.42,NPOWER,                         ,MKS ENVIRONMENTAL SERVICES,Electricity,Internal Trading Cost Centres
Swale Borough Council,29UM,29/03/2017,1149380,580.11,NPOWER,                         ,LEISURE & OPEN SPACES,Electricity,Cultural and Related Services
Swale Borough Council,29UM,29/03/2017,1149389,302.25,NPOWER,                         ,PROPERTY SERVICES,Electricity,Cultural and Related Services
Swale Borough Council,29UM,29/03/2017,1149058,8.50,O2 (UK) LTD,1743099                  ,COMMUNITY SAFETY,Cellphone,Planning and Development Services
Swale Borough Council,29UM,29/03/2017,1149058,7.28,O2 (UK) LTD,1743099                  ,COMMUNITY SAFETY,Cellphone,Planning and Development Services
Swale Borough Council,29UM,29/03/2017,1149058,43.00,O2 (UK) LTD,1743099                  ,COMMUNITY SAFETY,Cellphone,Environmental and Regulatory Services
Swale Borough Council,29UM,29/03/2017,1149058,9.50,O2 (UK) LTD,1743099                  ,TRANSFORMATION PROJECT,Cellphone,Corporate & Democratic Core
Swale Borough Council,29UM,29/03/2017,1149058,9.50,O2 (UK) LTD,1743099                  ,POLICY,Cellphone,Corporate & Democratic Core
Swale Borough Council,29UM,29/03/2017,1149058,15.02,O2 (UK) LTD,1743099                  ,PLANNING SERVICES,Cellphone,Planning and Development Services
Swale Borough Council,29UM,29/03/2017,1149058,10.00,O2 (UK) LTD,1743099                  ,PLANNING SERVICES,Cellphone,Planning and Development Services
Swale Borough Council,29UM,29/03/2017,1149058,19.50,O2 (UK) LTD,1743099                  ,EMERGENCY PLANNING,Cellphone,Central Services to the Public
Swale Borough Council,29UM,29/03/2017,1149058,27.27,O2 (UK) LTD,1743099                  ,SERVICE DELIVERY,Cellphone,Cultural and Related Services
Swale Borough Council,29UM,29/03/2017,1149058,36.71,O2 (UK) LTD,1743099                  ,HOUSING SERVICES,Cellphone,Housing
Swale Borough Council,29UM,29/03/2017,1149058,23.01,O2 (UK) LTD,1743099                  ,REVENUE SERVICES,Cellphone,Housing
Swale Borough Council,29UM,29/03/2017,1149058,7.00,O2 (UK) LTD,1743099                  ,HOUSING SERVICES,Cellphone,Housing
Swale Borough Council,29UM,29/03/2017,1149058,40.66,O2 (UK) LTD,1743099                  ,MKS LEGAL SERVICES,Cellphone,Internal Trading Cost Centres
Swale Borough Council,29UM,29/03/2017,1149058,7.00,O2 (UK) LTD,1743099                  ,DEMOCRATIC & ELECTORAL SERVICES,Cellphone,Internal Trading Cost Centres
Swale Borough Council,29UM,29/03/2017,1149058,9.50,O2 (UK) LTD,1743099                  ,DIRECTOR OF CORPORATE SERVICES,Cellphone,Internal Trading Cost Centres
Swale Borough Council,29UM,29/03/2017,1149058,106.13,O2 (UK) LTD,1743099                  ,PROPERTY SERVICES,Cellphone,Internal Trading Cost Centres
Swale Borough Council,29UM,29/03/2017,1149058,7.00,O2 (UK) LTD,1743099                  ,ECONOMY & COMMUNITIES,Cellphone,Internal Trading Cost Centres
Swale Borough Council,29UM,29/03/2017,1149058,19.00,O2 (UK) LTD,1743099                  ,TOURISM & SPORTS DEVELOPMENT,Cellphone,Internal Trading Cost Centres
Swale Borough Council,29UM,29/03/2017,1149058,30.50,O2 (UK) LTD,1743099                  ,ECONOMIC DEVELOPMENT,Cellphone,Internal Trading Cost Centres
Swale Borough Council,29UM,29/03/2017,1149058,18.61,O2 (UK) LTD,1743099                  ,SERVICE DELIVERY,Cellphone,Internal Trading Cost Centres
Swale Borough Council,29UM,29/03/2017,1149058,136.65,O2 (UK) LTD,1743099                  ,CONTRACT & PROCUREMENT,Cellphone,Internal Trading Cost Centres
Swale Borough Council,29UM,29/03/2017,1149058,49.93,O2 (UK) LTD,1743099                  ,MKS ENVIRONMENTAL SERVICES,Cellphone,Internal Trading Cost Centres
Swale Borough Council,29UM,29/03/2017,1149058,60.46,O2 (UK) LTD,1743099                  ,MKS ENVIRONMENTAL SERVICES,Cellphone,Internal Trading Cost Centres
Swale Borough Council,29UM,29/03/2017,1149058,94.90,O2 (UK) LTD,1743099                  ,ENVIRONMENTAL RESPONSE TEAM,Cellphone,Internal Trading Cost Centres
Swale Borough Council,29UM,29/03/2017,1149058,10.68,O2 (UK) LTD,1743099                  ,COMMISSIONING & CUSTOMER CONTACT,Cellphone,Internal Trading Cost Centres
Swale Borough Council,29UM,29/03/2017,1149058,10.87,O2 (UK) LTD,1743099                  ,PLANNING SERVICES,Cellphone,Internal Trading Cost Centres
Swale Borough Council,29UM,29/03/2017,1149058,65.19,O2 (UK) LTD,1743099                  ,LEISURE & OPEN SPACES,Cellphone,Internal Trading Cost Centres
Swale Borough Council,29UM,29/03/2017,1149058,19.50,O2 (UK) LTD,1743099                  ,CHIEF EXECUTIVE,Cellphone,Internal Trading Cost Centres
Swale Borough Council,29UM,29/03/2017,1149058,9.50,O2 (UK) LTD,1743099                  ,DIRECTOR OF CORPORATE SERVICES,Cellphone,Internal Trading Cost Centres
Swale Borough Council,29UM,29/03/2017,1149058,9.50,O2 (UK) LTD,1743099                  ,DIRECTOR OF REGENERATION,Cellphone,Internal Trading Cost Centres
Swale Borough Council,29UM,29/03/2017,1149058,21.00,O2 (UK) LTD,1743099                  ,COMMISSIONING & CUSTOMER CONTACT,Cellphone,Internal Trading Cost Centres
Swale Borough Council,29UM,29/03/2017,1149058,7.30,O2 (UK) LTD,1743099                  ,COMMISSIONING & CUSTOMER CONTACT,Cellphone,Internal Trading Cost Centres
Swale Borough Council,29UM,29/03/2017,1149058,28.58,O2 (UK) LTD,1743099                  ,POLICY,Cellphone,Internal Trading Cost Centres
Swale Borough Council,29UM,29/03/2017,1149058,24.09,O2 (UK) LTD,1743099                  ,COMMUNICATIONS,Cellphone,Internal Trading Cost Centres
Swale Borough Council,29UM,29/03/2017,1149058,38.00,O2 (UK) LTD,1743099                  ,ENVIRONMENTAL RESPONSE TEAM,Cellphone,Internal Trading Cost Centres
Swale Borough Council,29UM,29/03/2017,1149058,2.00,O2 (UK) LTD,1743099                  ,LEISURE & OPEN SPACES,Cellphone,Cultural and Related Services
Swale Borough Council,29UM,29/03/2017,1149058,2.00,O2 (UK) LTD,1743099                  ,HOUSING SERVICES,Cellphone,Housing
Swale Borough Council,29UM,29/03/2017,1149058,28.59,O2 (UK) LTD,1743099                  ,HOUSING SERVICES,Cellphone,Housing
Swale Borough Council,29UM,29/03/2017,1149058,26.34,O2 (UK) LTD,1743099                  ,ENVIRONMENTAL RESPONSE TEAM,Cellphone,Environmental and Regulatory Services
Swale Borough Council,29UM,29/03/2017,1149058,7.63,O2 (UK) LTD,1743099                  ,TOURISM & SPORTS DEVELOPMENT,Cellphone,Cultural and Related Services
Swale Borough Council,29UM,29/03/2017,1149058,32.00,O2 (UK) LTD,1743099                  ,HOUSING SERVICES,Cellphone,Housing
Swale Borough Council,29UM,29/03/2017,1149059,8.50,O2 (UK) LTD,1743099                  ,COMMUNITY SAFETY,Cellphone,Planning and Development Services
Swale Borough Council,29UM,29/03/2017,1149059,7.00,O2 (UK) LTD,1743099                  ,COMMUNITY SAFETY,Cellphone,Planning and Development Services
Swale Borough Council,29UM,29/03/2017,1149059,47.90,O2 (UK) LTD,1743099                  ,COMMUNITY SAFETY,Cellphone,Environmental and Regulatory Services
Swale Borough Council,29UM,29/03/2017,1149059,9.50,O2 (UK) LTD,1743099                  ,TRANSFORMATION PROJECT,Cellphone,Corporate & Democratic Core
Swale Borough Council,29UM,29/03/2017,1149059,9.50,O2 (UK) LTD,1743099                  ,POLICY,Cellphone,Corporate & Democratic Core
Swale Borough Council,29UM,29/03/2017,1149059,15.19,O2 (UK) LTD,1743099                  ,PLANNING SERVICES,Cellphone,Planning and Development Services
Swale Borough Council,29UM,29/03/2017,1149059,10.00,O2 (UK) LTD,1743099                  ,PLANNING SERVICES,Cellphone,Planning and Development Services
Swale Borough Council,29UM,29/03/2017,1149059,19.50,O2 (UK) LTD,1743099                  ,EMERGENCY PLANNING,Cellphone,Central Services to the Public
Swale Borough Council,29UM,29/03/2017,1149059,25.98,O2 (UK) LTD,1743099                  ,SERVICE DELIVERY,Cellphone,Cultural and Related Services
Swale Borough Council,29UM,29/03/2017,1149059,37.82,O2 (UK) LTD,1743099                  ,HOUSING SERVICES,Cellphone,Housing
Swale Borough Council,29UM,29/03/2017,1149059,22.70,O2 (UK) LTD,1743099                  ,REVENUE SERVICES,Cellphone,Housing
Swale Borough Council,29UM,29/03/2017,1149059,7.00,O2 (UK) LTD,1743099                  ,HOUSING SERVICES,Cellphone,Housing
Swale Borough Council,29UM,29/03/2017,1149059,40.96,O2 (UK) LTD,1743099                  ,MKS LEGAL SERVICES,Cellphone,Internal Trading Cost Centres
Swale Borough Council,29UM,29/03/2017,1149059,1.36,O2 (UK) LTD,1743099                  ,DEMOCRATIC & ELECTORAL SERVICES,Cellphone,Internal Trading Cost Centres
Swale Borough Council,29UM,29/03/2017,1149059,9.50,O2 (UK) LTD,1743099                  ,DIRECTOR OF CORPORATE SERVICES,Cellphone,Internal Trading Cost Centres
Swale Borough Council,29UM,29/03/2017,1149059,88.00,O2 (UK) LTD,1743099                  ,PROPERTY SERVICES,Cellphone,Internal Trading Cost Centres
Swale Borough Council,29UM,29/03/2017,1149059,7.00,O2 (UK) LTD,1743099                  ,ECONOMY & COMMUNITIES,Cellphone,Internal Trading Cost Centres
Swale Borough Council,29UM,29/03/2017,1149059,19.50,O2 (UK) LTD,1743099                  ,TOURISM & SPORTS DEVELOPMENT,Cellphone,Internal Trading Cost Centres
Swale Borough Council,29UM,29/03/2017,1149059,30.70,O2 (UK) LTD,1743099                  ,ECONOMIC DEVELOPMENT,Cellphone,Internal Trading Cost Centres
Swale Borough Council,29UM,29/03/2017,1149059,20.37,O2 (UK) LTD,1743099                  ,SERVICE DELIVERY,Cellphone,Internal Trading Cost Centres
Swale Borough Council,29UM,29/03/2017,1149059,136.58,O2 (UK) LTD,1743099                  ,CONTRACT & PROCUREMENT,Cellphone,Internal Trading Cost Centres
Swale Borough Council,29UM,29/03/2017,1149059,50.47,O2 (UK) LTD,1743099                  ,MKS ENVIRONMENTAL SERVICES,Cellphone,Internal Trading Cost Centres
Swale Borough Council,29UM,29/03/2017,1149059,56.50,O2 (UK) LTD,1743099                  ,MKS ENVIRONMENTAL SERVICES,Cellphone,Internal Trading Cost Centres
Swale Borough Council,29UM,29/03/2017,1149059,95.09,O2 (UK) LTD,1743099                  ,ENVIRONMENTAL RESPONSE TEAM,Cellphone,Internal Trading Cost Centres
Swale Borough Council,29UM,29/03/2017,1149059,12.84,O2 (UK) LTD,1743099                  ,COMMISSIONING & CUSTOMER CONTACT,Cellphone,Internal Trading Cost Centres
Swale Borough Council,29UM,29/03/2017,1149059,11.09,O2 (UK) LTD,1743099                  ,PLANNING SERVICES,Cellphone,Internal Trading Cost Centres
Swale Borough Council,29UM,29/03/2017,1149059,65.81,O2 (UK) LTD,1743099                  ,LEISURE & OPEN SPACES,Cellphone,Internal Trading Cost Centres
Swale Borough Council,29UM,29/03/2017,1149059,19.50,O2 (UK) LTD,1743099                  ,CHIEF EXECUTIVE,Cellphone,Internal Trading Cost Centres
Swale Borough Council,29UM,29/03/2017,1149059,9.50,O2 (UK) LTD,1743099                  ,DIRECTOR OF CORPORATE SERVICES,Cellphone,Internal Trading Cost Centres
Swale Borough Council,29UM,29/03/2017,1149059,9.50,O2 (UK) LTD,1743099                  ,DIRECTOR OF REGENERATION,Cellphone,Internal Trading Cost Centres
Swale Borough Council,29UM,29/03/2017,1149059,21.00,O2 (UK) LTD,1743099                  ,COMMISSIONING & CUSTOMER CONTACT,Cellphone,Internal Trading Cost Centres
Swale Borough Council,29UM,29/03/2017,1149059,7.02,O2 (UK) LTD,1743099                  ,COMMISSIONING & CUSTOMER CONTACT,Cellphone,Internal Trading Cost Centres
Swale Borough Council,29UM,29/03/2017,1149059,19.98,O2 (UK) LTD,1743099                  ,POLICY,Cellphone,Internal Trading Cost Centres
Swale Borough Council,29UM,29/03/2017,1149059,24.42,O2 (UK) LTD,1743099                  ,COMMUNICATIONS,Cellphone,Internal Trading Cost Centres
Swale Borough Council,29UM,29/03/2017,1149059,38.08,O2 (UK) LTD,1743099                  ,ENVIRONMENTAL RESPONSE TEAM,Cellphone,Internal Trading Cost Centres
Swale Borough Council,29UM,29/03/2017,1149059,5.64,O2 (UK) LTD,1743099                  ,DEMOCRATIC & ELECTORAL SERVICES,Cellphone,Internal Trading Cost Centres
Swale Borough Council,29UM,29/03/2017,1149059,2.00,O2 (UK) LTD,1743099                  ,HOUSING SERVICES,Cellphone,Housing
Swale Borough Council,29UM,29/03/2017,1149059,27.39,O2 (UK) LTD,1743099                  ,HOUSING SERVICES,Cellphone,Housing
Swale Borough Council,29UM,29/03/2017,1149059,28.12,O2 (UK) LTD,1743099                  ,ENVIRONMENTAL RESPONSE TEAM,Cellphone,Environmental and Regulatory Services
Swale Borough Council,29UM,29/03/2017,1149059,7.50,O2 (UK) LTD,1743099                  ,TOURISM & SPORTS DEVELOPMENT,Cellphone,Cultural and Related Services
Swale Borough Council,29UM,29/03/2017,1149059,36.78,O2 (UK) LTD,1743099                  ,HOUSING SERVICES,Cellphone,Housing
Swale Borough Council,29UM,29/03/2017,1149060,8.50,O2 (UK) LTD,1743099                  ,COMMUNITY SAFETY,Cellphone,Planning and Development Services
Swale Borough Council,29UM,29/03/2017,1149060,7.00,O2 (UK) LTD,1743099                  ,COMMUNITY SAFETY,Cellphone,Planning and Development Services
Swale Borough Council,29UM,29/03/2017,1149060,45.63,O2 (UK) LTD,1743099                  ,COMMUNITY SAFETY,Cellphone,Environmental and Regulatory Services
Swale Borough Council,29UM,29/03/2017,1149060,9.50,O2 (UK) LTD,1743099                  ,TRANSFORMATION PROJECT,Cellphone,Corporate & Democratic Core
Swale Borough Council,29UM,29/03/2017,1149060,9.50,O2 (UK) LTD,1743099                  ,POLICY,Cellphone,Corporate & Democratic Core
Swale Borough Council,29UM,29/03/2017,1149060,13.00,O2 (UK) LTD,1743099                  ,PLANNING SERVICES,Cellphone,Planning and Development Services
Swale Borough Council,29UM,29/03/2017,1149060,10.00,O2 (UK) LTD,1743099                  ,PLANNING SERVICES,Cellphone,Planning and Development Services
Swale Borough Council,29UM,29/03/2017,1149060,19.50,O2 (UK) LTD,1743099                  ,EMERGENCY PLANNING,Cellphone,Central Services to the Public
Swale Borough Council,29UM,29/03/2017,1149060,26.11,O2 (UK) LTD,1743099                  ,SERVICE DELIVERY,Cellphone,Cultural and Related Services
Swale Borough Council,29UM,29/03/2017,1149060,36.97,O2 (UK) LTD,1743099                  ,HOUSING SERVICES,Cellphone,Housing
Swale Borough Council,29UM,29/03/2017,1149060,23.28,O2 (UK) LTD,1743099                  ,REVENUE SERVICES,Cellphone,Housing
Swale Borough Council,29UM,29/03/2017,1149060,7.00,O2 (UK) LTD,1743099                  ,HOUSING SERVICES,Cellphone,Housing
Swale Borough Council,29UM,29/03/2017,1149060,39.52,O2 (UK) LTD,1743099                  ,MKS LEGAL SERVICES,Cellphone,Internal Trading Cost Centres
Swale Borough Council,29UM,29/03/2017,1149060,0.67,O2 (UK) LTD,1743099                  ,PROPERTY SERVICES,Cellphone,Internal Trading Cost Centres
Swale Borough Council,29UM,29/03/2017,1149060,7.00,O2 (UK) LTD,1743099                  ,DEMOCRATIC & ELECTORAL SERVICES,Cellphone,Internal Trading Cost Centres
Swale Borough Council,29UM,29/03/2017,1149060,96.42,O2 (UK) LTD,1743099                  ,PROPERTY SERVICES,Cellphone,Internal Trading Cost Centres
Swale Borough Council,29UM,29/03/2017,1149060,7.00,O2 (UK) LTD,1743099                  ,ECONOMY & COMMUNITIES,Cellphone,Internal Trading Cost Centres
Swale Borough Council,29UM,29/03/2017,1149060,19.50,O2 (UK) LTD,1743099                  ,TOURISM & SPORTS DEVELOPMENT,Cellphone,Internal Trading Cost Centres
Swale Borough Council,29UM,29/03/2017,1149060,30.50,O2 (UK) LTD,1743099                  ,ECONOMIC DEVELOPMENT,Cellphone,Internal Trading Cost Centres
Swale Borough Council,29UM,29/03/2017,1149060,19.22,O2 (UK) LTD,1743099                  ,SERVICE DELIVERY,Cellphone,Internal Trading Cost Centres
Swale Borough Council,29UM,29/03/2017,1149060,136.50,O2 (UK) LTD,1743099                  ,CONTRACT & PROCUREMENT,Cellphone,Internal Trading Cost Centres
Swale Borough Council,29UM,29/03/2017,1149060,50.12,O2 (UK) LTD,1743099                  ,MKS ENVIRONMENTAL SERVICES,Cellphone,Internal Trading Cost Centres
Swale Borough Council,29UM,29/03/2017,1149060,57.00,O2 (UK) LTD,1743099                  ,MKS ENVIRONMENTAL SERVICES,Cellphone,Internal Trading Cost Centres
Swale Borough Council,29UM,29/03/2017,1149060,86.50,O2 (UK) LTD,1743099                  ,ENVIRONMENTAL RESPONSE TEAM,Cellphone,Internal Trading Cost Centres
Swale Borough Council,29UM,29/03/2017,1149060,14.68,O2 (UK) LTD,1743099                  ,COMMISSIONING & CUSTOMER CONTACT,Cellphone,Internal Trading Cost Centres
Swale Borough Council,29UM,29/03/2017,1149060,12.41,O2 (UK) LTD,1743099                  ,PLANNING SERVICES,Cellphone,Internal Trading Cost Centres
Swale Borough Council,29UM,29/03/2017,1149060,66.02,O2 (UK) LTD,1743099                  ,LEISURE & OPEN SPACES,Cellphone,Internal Trading Cost Centres
Swale Borough Council,29UM,29/03/2017,1149060,19.50,O2 (UK) LTD,1743099                  ,CHIEF EXECUTIVE,Cellphone,Internal Trading Cost Centres
Swale Borough Council,29UM,29/03/2017,1149060,9.50,O2 (UK) LTD,1743099                  ,DIRECTOR OF CORPORATE SERVICES,Cellphone,Internal Trading Cost Centres
Swale Borough Council,29UM,29/03/2017,1149060,9.50,O2 (UK) LTD,1743099                  ,DIRECTOR OF REGENERATION,Cellphone,Internal Trading Cost Centres
Swale Borough Council,29UM,29/03/2017,1149060,21.00,O2 (UK) LTD,1743099                  ,COMMISSIONING & CUSTOMER CONTACT,Cellphone,Internal Trading Cost Centres
Swale Borough Council,29UM,29/03/2017,1149060,7.83,O2 (UK) LTD,1743099                  ,COMMISSIONING & CUSTOMER CONTACT,Cellphone,Internal Trading Cost Centres
Swale Borough Council,29UM,29/03/2017,1149060,14.67,O2 (UK) LTD,1743099                  ,POLICY,Cellphone,Internal Trading Cost Centres
Swale Borough Council,29UM,29/03/2017,1149060,24.51,O2 (UK) LTD,1743099                  ,COMMUNICATIONS,Cellphone,Internal Trading Cost Centres
Swale Borough Council,29UM,29/03/2017,1149060,38.25,O2 (UK) LTD,1743099                  ,ENVIRONMENTAL RESPONSE TEAM,Cellphone,Internal Trading Cost Centres
Swale Borough Council,29UM,29/03/2017,1149060,9.50,O2 (UK) LTD,1743099                  ,DIRECTOR OF CORPORATE SERVICES,Cellphone,Internal Trading Cost Centres
Swale Borough Council,29UM,29/03/2017,1149060,2.00,O2 (UK) LTD,1743099                  ,LEISURE & OPEN SPACES,Cellphone,Cultural and Related Services
Swale Borough Council,29UM,29/03/2017,1149060,2.00,O2 (UK) LTD,1743099                  ,HOUSING SERVICES,Cellphone,Housing
Swale Borough Council,29UM,29/03/2017,1149060,28.00,O2 (UK) LTD,1743099                  ,HOUSING SERVICES,Cellphone,Housing
Swale Borough Council,29UM,29/03/2017,1149060,27.03,O2 (UK) LTD,1743099                  ,ENVIRONMENTAL RESPONSE TEAM,Cellphone,Environmental and Regulatory Services
Swale Borough Council,29UM,29/03/2017,1149060,11.43,O2 (UK) LTD,1743099                  ,TOURISM & SPORTS DEVELOPMENT,Cellphone,Cultural and Related Services
Swale Borough Council,29UM,29/03/2017,1149060,32.00,O2 (UK) LTD,1743099                  ,HOUSING SERVICES,Cellphone,Housing
Swale Borough Council,29UM,29/03/2017,1149469,3150.00,P BINNIE CONSULTANCY LTD,07794784                 ,ECONOMIC DEVELOPMENT,Consultancy/Specialist Advice,Planning and Development Services
Swale Borough Council,29UM,29/03/2017,1149454,5300.00,PROLUDIC LTD,04455803                 ,LEISURE & OPEN SPACES,Construction,Not used in this Structure
Swale Borough Council,29UM,29/03/2017,1149216,455.00,REARDON PROPERTIES,                         ,HOUSING SERVICES,B & B - Landlords Payments,Housing
Swale Borough Council,29UM,29/03/2017,1149218,875.00,REARDON PROPERTIES,                         ,HOUSING SERVICES,B & B - Landlords Payments,Housing
Swale Borough Council,29UM,29/03/2017,1149219,490.00,REARDON PROPERTIES,                         ,HOUSING SERVICES,B & B - Landlords Payments,Housing
Swale Borough Council,29UM,29/03/2017,1149456,490.00,REARDON PROPERTIES,                         ,HOUSING SERVICES,B & B - Landlords Payments,Housing
Swale Borough Council,29UM,29/03/2017,1149457,875.00,REARDON PROPERTIES,                         ,HOUSING SERVICES,B & B - Landlords Payments,Housing
Swale Borough Council,29UM,29/03/2017,1149458,490.00,REARDON PROPERTIES,                         ,HOUSING SERVICES,B & B - Landlords Payments,Housing
Swale Borough Council,29UM,29/03/2017,1149448,550.00,SHARNWOOD DEVELOPMENTS LTD,                         ,HOUSING SERVICES,RDS - Landlord claim on Bond Scheme,Housing
Swale Borough Council,29UM,29/03/2017,1149315,268.28,SITTINGBOURNE & DIST NETBALL LEAGUE,                         ,TOURISM & SPORTS DEVELOPMENT,Grants & Subscriptions,Cultural and Related Services
Swale Borough Council,29UM,29/03/2017,1149366,360.00,SITTINGBOURNE FOOTBALL CLUB,                         ,COMMUNITY SAFETY,Grants & Subscriptions,Central Services to the Public
Swale Borough Council,29UM,29/03/2017,1149191,6290.74,SOLACE IN BUSINESS LTD,3150254                  ,DIRECTOR OF REGENERATION,Recruitment Consultants,Planning and Development Services
Swale Borough Council,29UM,29/03/2017,1149527,2086.92,SOUTH EAST BUILDING CO LTD,1786838                  ,HOUSING SERVICES,Housing Renovation Grants,Not used in this Structure
Swale Borough Council,29UM,29/03/2017,1149274,398.27,STANFORD & GREEN LIMITED,4691456                  ,REVENUE SERVICES,Fees - Bailiffs,Central Services to the Public
Swale Borough Council,29UM,29/03/2017,1149524,6179.99,TERRY & CARR LTD,606827                   ,HOUSING SERVICES,Housing Renovation Grants,Not used in this Structure
Swale Borough Council,29UM,29/03/2017,1149485,1886.10,THE JOHN WOODWARD PARTNERSHIP,                         ,PLANNING SERVICES,Fees And Services,Planning and Development Services
Swale Borough Council,29UM,29/03/2017,1149006,5067.58,THE NATIONAL LEAFLET COMPANY,02569979                 ,COMMUNICATIONS,Postage,Corporate & Democratic Core
Swale Borough Council,29UM,29/03/2017,1149147,1172.50,THE OYSTER PARTNERSHIP,05020374                 ,PLANNING SERVICES,Agency/Contract Staff,Internal Trading Cost Centres
Swale Borough Council,29UM,29/03/2017,1149434,1340.00,THE PRINTED BAG SHOP LIMITED,07187212                 ,ECONOMIC DEVELOPMENT,Fees And Services,Planning and Development Services
Swale Borough Council,29UM,29/03/2017,1149434,268.00,THE PRINTED BAG SHOP LIMITED,07187212                 ,ECONOMIC DEVELOPMENT,Fees And Services,Planning and Development Services
Swale Borough Council,29UM,29/03/2017,1149435,420.00,TIME ASSURED LIMITED,7483197                  ,PROPERTY SERVICES,Non-Planned Building Maintenance,Cultural and Related Services
Swale Borough Council,29UM,29/03/2017,1149065,1625.00,TRAFALGAR TAVERN LTD,07999329                 ,HOUSING SERVICES,B & B - Landlords Payments,Housing
Swale Borough Council,29UM,29/03/2017,1149240,1750.00,TRAFALGAR TAVERN LTD,07999329                 ,HOUSING SERVICES,B & B - Landlords Payments,Housing
Swale Borough Council,29UM,29/03/2017,1149480,1750.00,TRAFALGAR TAVERN LTD,07999329                 ,HOUSING SERVICES,B & B - Landlords Payments,Housing
Swale Borough Council,29UM,29/03/2017,1149481,1785.00,TRAFALGAR TAVERN LTD,07999329                 ,HOUSING SERVICES,B & B - Landlords Payments,Housing
Swale Borough Council,29UM,29/03/2017,1148822,194.79,UK PAPER LEISURE CLUB,                         ,HOUSING SERVICES,Homelessness  Prevention Services,Housing
Swale Borough Council,29UM,29/03/2017,1148822,137.00,UK PAPER LEISURE CLUB,                         ,HOUSING SERVICES,Homelessness  Prevention Services,Housing
Swale Borough Council,29UM,29/03/2017,1149348,1281.00,VENN GROUP LIMITED,                         ,MKS LEGAL SERVICES,Agency/Contract Staff,Internal Trading Cost Centres
Swale Borough Council,29UM,29/03/2017,1149150,585.00,VIVID RESOURCING LIMITED,06459262                 ,PLANNING SERVICES,Agency/Contract Staff,Internal Trading Cost Centres
Swale Borough Council,29UM,29/03/2017,1149349,1560.00,VIVID RESOURCING LIMITED,06459262                 ,PLANNING SERVICES,Agency/Contract Staff,Internal Trading Cost Centres
Swale Borough Council,29UM,29/03/2017,1149301,2250.00,WEALD WOODSCAPES LTD,8028446                  ,LEISURE & OPEN SPACES,Maintenance - Grounds,Cultural and Related Services
Swale Borough Council,29UM,29/03/2017,1149114,12654.14,WHISTL UK LIMITED,04417047                 ,REVENUE SERVICES,Postage,Central Services to the Public
Swale Borough Council,29UM,29/03/2017,1149114,2.27,WHISTL UK LIMITED,04417047                 ,PLANNING SERVICES,Postage,Planning and Development Services
Swale Borough Council,29UM,29/03/2017,1149114,6327.06,WHISTL UK LIMITED,04417047                 ,REVENUE SERVICES,Postage,Housing
Swale Borough Council,29UM,29/03/2017,1149114,84.68,WHISTL UK LIMITED,04417047                 ,LEISURE & OPEN SPACES,Postage,Internal Trading Cost Centres
Swale Borough Council,29UM,29/03/2017,1149114,20.22,WHISTL UK LIMITED,04417047                 ,CAR PARKS,Postage,Internal Trading Cost Centres
Swale Borough Council,29UM,29/03/2017,1149114,36.52,WHISTL UK LIMITED,04417047                 ,PROPERTY SERVICES,Postage,Holding Codes
Swale Borough Council,29UM,29/03/2017,1149114,69.98,WHISTL UK LIMITED,04417047                 ,DEMOCRATIC & ELECTORAL SERVICES,Postage,Central Services to the Public
Swale Borough Council,29UM,29/03/2017,1149259,1093.00,WILLOW TREE HOME SOLUTIONS LTD,                         ,HOUSING SERVICES,Staying Put small repairs (contractors),Housing
Swale Borough Council,29UM,29/03/2017,1149427,290.00,WILLOW TREE HOME SOLUTIONS LTD,                         ,HOUSING SERVICES,Staying Put small repairs (contractors),Housing
Swale Borough Council,29UM,29/03/2017,1149313,1000.00,WOODCOMBE SPORTS CLUB,                         ,TOURISM & SPORTS DEVELOPMENT,Grants & Subscriptions,Cultural and Related Services
Swale Borough Council,29UM,31/03/2017,1149583,600.00,5th SITTINGBOURNE SCOUTS,                         ,COMMUNITY SAFETY,Grants & Subscriptions,Central Services to the Public
Swale Borough Council,29UM,31/03/2017,1149467,500.00,ABBEY PHYSIC COMMUNITY GARDEN,                         ,COMMUNITY SAFETY,Grants & Subscriptions,Central Services to the Public
Swale Borough Council,29UM,31/03/2017,1149515,2000.00,ASHFORD BOROUGH COUNCIL,                         ,HOUSING SERVICES,Performance Fund Expenditure,Ledger/Suspense Codes
Swale Borough Council,29UM,31/03/2017,1149489,23971.88,BLENWOOD LTD,4383277                  ,LEISURE & OPEN SPACES,Forestry/Woodland,Cultural and Related Services
Swale Borough Council,29UM,31/03/2017,1149545,6200.00,BLENWOOD LTD,4383277                  ,COMMUNITY SAFETY,Buildings Maintenance,Cultural and Related Services
Swale Borough Council,29UM,31/03/2017,1149546,704.44,BLENWOOD LTD,4383277                  ,LEISURE & OPEN SPACES,Grounds Contract Variations,Cultural and Related Services
Swale Borough Council,29UM,31/03/2017,1149506,1260.00,BT DEVELOPMENTS,                         ,HOUSING SERVICES,B & B - Landlords Payments,Housing
Swale Borough Council,29UM,31/03/2017,1149542,5790.00,CIPFA BUSINESS LTD,2376684                  ,FINANCIAL SERVICES,Payments in Year,Ledger/Suspense Codes
Swale Borough Council,29UM,31/03/2017,1149286,6391.91,COMENSURA LTD,04085767                 ,HUMAN RESOURCES,Agency/Contract Staff,Internal Trading Cost Centres
Swale Borough Council,29UM,31/03/2017,1149541,5485.98,COMENSURA LTD,04085767                 ,HUMAN RESOURCES,Agency/Contract Staff,Internal Trading Cost Centres
Swale Borough Council,29UM,31/03/2017,1149512,3815.56,COMMERCIAL SERVICES TRADING LTD,5858178                  ,SERVICE DELIVERY,Hire & Leases,Cultural and Related Services
Swale Borough Council,29UM,31/03/2017,1149513,3737.32,COMMERCIAL SERVICES TRADING LTD,5858178                  ,SERVICE DELIVERY,Hire & Leases,Cultural and Related Services
Swale Borough Council,29UM,31/03/2017,1149272,15637.00,CONTRACT SIGN SYSTEMS LTD,2573530                  ,CAR PARKS,Equipment,Not used in this Structure
Swale Borough Council,29UM,31/03/2017,1149614,3068.01,DAYTRAD LIMITED,7654373                  ,HOUSING SERVICES,Housing Renovation Grants,Not used in this Structure
Swale Borough Council,29UM,31/03/2017,1149609,520.00,DOLPHIN STAIRLIFTS (KENT),04181846                 ,HOUSING SERVICES,Housing Renovation Grants,Not used in this Structure
Swale Borough Council,29UM,31/03/2017,1149571,15000.00,ENJOY TRAINING LTD,07147115                 ,ECONOMIC DEVELOPMENT,Fees And Services,Planning and Development Services
Swale Borough Council,29UM,31/03/2017,1149193,6500.00,FMC (FABRICS & MAINT CONT) LTD,07509198                 ,COMMUNITY SAFETY,Capital Constuction - CIS Works,Not used in this Structure
Swale Borough Council,29UM,31/03/2017,1149193,19580.55,FMC (FABRICS & MAINT CONT) LTD,07509198                 ,COMMUNITY SAFETY,Capital Constuction - CIS Works,Not used in this Structure
Swale Borough Council,29UM,31/03/2017,1149193,1050.99,FMC (FABRICS & MAINT CONT) LTD,07509198                 ,COMMUNITY SAFETY,Capital Constuction - CIS Works,Not used in this Structure
Swale Borough Council,29UM,31/03/2017,1149572,1000.00,GREEN CUBE CIC,                         ,COMMUNITY SAFETY,Grants & Subscriptions,Central Services to the Public
Swale Borough Council,29UM,31/03/2017,1149499,500.00,HUBBARD & HOUGHTON CONSTRUCTION LTD,                         ,HOUSING SERVICES,Staying Put small repairs (contractors),Housing
Swale Borough Council,29UM,31/03/2017,1149608,2700.00,HUBBARD & HOUGHTON CONSTRUCTION LTD,                         ,HOUSING SERVICES,Housing Renovation Grants,Not used in this Structure
Swale Borough Council,29UM,31/03/2017,1149501,495.00,IRRV SERVICES LTD,223447                   ,REVENUE SERVICES,Grants & Subscriptions,Housing
Swale Borough Council,29UM,31/03/2017,1149543,2087.00,KEEP BRITAIN TIDY,                         ,SERVICE DELIVERY,Prizes/Awards,Cultural and Related Services
Swale Borough Council,29UM,31/03/2017,1149520,200.00,LEMAR LIMITED,04350292                 ,SERVICE DELIVERY,Private Contractors - CIS,Highway and Transport Services
Swale Borough Council,29UM,31/03/2017,1149520,500.00,LEMAR LIMITED,04350292                 ,SERVICE DELIVERY,Private Contractors - CIS,Highway and Transport Services
Swale Borough Council,29UM,31/03/2017,1149593,250.00,LEMAR LIMITED,04350292                 ,SERVICE DELIVERY,Private Contractors - CIS,Highway and Transport Services
Swale Borough Council,29UM,31/03/2017,1149593,50.00,LEMAR LIMITED,04350292                 ,SERVICE DELIVERY,Private Contractors - CIS,Highway and Transport Services
Swale Borough Council,29UM,31/03/2017,1149538,750.00,LEYSDOWN VILLAGE HALL,                         ,COMMUNITY SAFETY,Grants & Subscriptions,Central Services to the Public
Swale Borough Council,29UM,31/03/2017,1149310,3185.00,MAGEES GUESTHOUSE,                         ,HOUSING SERVICES,B & B - Landlords Payments,Housing
Swale Borough Council,29UM,31/03/2017,1149544,3010.00,MAGEES GUESTHOUSE,                         ,HOUSING SERVICES,B & B - Landlords Payments,Housing
Swale Borough Council,29UM,31/03/2017,1149497,400.00,MAIDSTONE BOROUGH COUNCIL,                         ,MKS ENVIRONMENTAL SERVICES,MKS Charges for Environmental Services,Internal Trading Cost Centres
Swale Borough Council,29UM,31/03/2017,1149559,15581.00,MAIDSTONE BOROUGH COUNCIL,                         ,REVENUE SERVICES,MKS Debt Recovery Partnership Charges,Central Services to the Public
Swale Borough Council,29UM,31/03/2017,1149440,1702.00,MATCHTECH,4426336                  ,PLANNING SERVICES,Agency/Contract Staff,Internal Trading Cost Centres
Swale Borough Council,29UM,31/03/2017,1149464,1794.00,MAYLOW CONSTRUCTION LTD,                         ,LEISURE & OPEN SPACES,Maintenance - Grounds,Cultural and Related Services
Swale Borough Council,29UM,31/03/2017,1149466,312.00,MAYLOW CONSTRUCTION LTD,                         ,LEISURE & OPEN SPACES,Maintenance - Grounds,Cultural and Related Services
Swale Borough Council,29UM,31/03/2017,1149249,3000.80,MEDWAY ACCOMMODATION LIMITED,                         ,HOUSING SERVICES,B & B - Landlords Payments,Housing
Swale Borough Council,29UM,31/03/2017,1149249,625.17,MEDWAY ACCOMMODATION LIMITED,                         ,HOUSING SERVICES,B & B - Landlords Payments,Housing
Swale Borough Council,29UM,31/03/2017,1149460,2921.60,MEDWAY ACCOMMODATION LIMITED,                         ,HOUSING SERVICES,B & B - Landlords Payments,Housing
Swale Borough Council,29UM,31/03/2017,1149460,608.67,MEDWAY ACCOMMODATION LIMITED,                         ,HOUSING SERVICES,B & B - Landlords Payments,Housing
Swale Borough Council,29UM,31/03/2017,1149563,3150.00,MELENGA BUSINESS SOLUTIONS LTD,06148446                 ,FINANCIAL SERVICES,Agency/Contract Staff,Internal Trading Cost Centres
Swale Borough Council,29UM,31/03/2017,1149569,619.00,MURSTON ALL SAINTS TRUST,                         ,TOURISM & SPORTS DEVELOPMENT,Grants & Subscriptions,Cultural and Related Services
Swale Borough Council,29UM,31/03/2017,1149637,443.47,REDACTED PERSONAL INFORMATION,                         ,REVENUE SERVICES,Fees And Services,Housing
Swale Borough Council,29UM,31/03/2017,1149599,21028.15,PINSENT MASONS LLP,OC333653                 ,ECONOMIC DEVELOPMENT,Consultancy/Specialist Advice,Planning and Development Services
Swale Borough Council,29UM,31/03/2017,1149459,735.00,REARDON PROPERTIES,                         ,HOUSING SERVICES,B & B - Landlords Payments,Housing
Swale Borough Council,29UM,31/03/2017,1149498,735.00,REARDON PROPERTIES,                         ,HOUSING SERVICES,B & B - Landlords Payments,Housing
Swale Borough Council,29UM,31/03/2017,1149615,1750.00,RSP RAIL TRAVEL ACCOUNT - (DT),                         ,FINANCIAL SERVICES,Travel Warrants (Staff Travel),Internal Trading Cost Centres
Swale Borough Council,29UM,31/03/2017,1149579,386.45,SMS CONNECTIONS LIMITED,                         ,COMMUNITY SAFETY,Capitalised Fees And Charges,Not used in this Structure
Swale Borough Council,29UM,31/03/2017,1149579,77.29,SMS CONNECTIONS LIMITED,                         ,COMMUNITY SAFETY,Capitalised Fees And Charges,Not used in this Structure
Swale Borough Council,29UM,31/03/2017,1149613,6011.28,SOUTH EAST BUILDING CO LTD,1786838                  ,HOUSING SERVICES,Housing Renovation Grants,Not used in this Structure
Swale Borough Council,29UM,31/03/2017,1149570,600.00,SWALE FILM SOCIETY,                         ,COMMUNITY SAFETY,Grants & Subscriptions,Central Services to the Public
Swale Borough Council,29UM,31/03/2017,1149612,5402.88,TERRY & CARR LTD,606827                   ,HOUSING SERVICES,Housing Renovation Grants,Not used in this Structure
Swale Borough Council,29UM,31/03/2017,1149584,1347.36,VENN GROUP LIMITED,                         ,MKS LEGAL SERVICES,Agency/Contract Staff,Internal Trading Cost Centres
Swale Borough Council,29UM,31/03/2017,1149446,1245.27,WHISTL UK LIMITED,04417047                 ,REVENUE SERVICES,Postage,Central Services to the Public
Swale Borough Council,29UM,31/03/2017,1149446,3.05,WHISTL UK LIMITED,04417047                 ,PLANNING SERVICES,Postage,Planning and Development Services
Swale Borough Council,29UM,31/03/2017,1149446,622.63,WHISTL UK LIMITED,04417047                 ,REVENUE SERVICES,Postage,Housing
Swale Borough Council,29UM,31/03/2017,1149446,5.50,WHISTL UK LIMITED,04417047                 ,LEISURE & OPEN SPACES,Postage,Internal Trading Cost Centres
Swale Borough Council,29UM,31/03/2017,1149446,16.84,WHISTL UK LIMITED,04417047                 ,CAR PARKS,Postage,Internal Trading Cost Centres
Swale Borough Council,29UM,31/03/2017,1149446,5.11,WHISTL UK LIMITED,04417047                 ,ECONOMIC DEVELOPMENT,Postage,Internal Trading Cost Centres
Swale Borough Council,29UM,31/03/2017,1149446,306.06,WHISTL UK LIMITED,04417047                 ,PROPERTY SERVICES,Postage,Holding Codes
Swale Borough Council,29UM,31/03/2017,1149446,87.69,WHISTL UK LIMITED,04417047                 ,DEMOCRATIC & ELECTORAL SERVICES,Postage,Central Services to the Public
Swale Borough Council,29UM,31/03/2017,1149514,318.00,WILLOW TREE HOME SOLUTIONS LTD,                         ,HOUSING SERVICES,Staying Put small repairs (contractors),Housing
Swale Borough Council,29UM,31/03/2017,1149540,355.00,WILLOW TREE HOME SOLUTIONS LTD,                         ,HOUSING SERVICES,Staying Put small repairs (contractors),Housing
Swale Borough Council,29UM,31/03/2017,1149592,260.00,WILLOW TREE HOME SOLUTIONS LTD,                         ,HOUSING SERVICES,Staying Put small repairs (contractors),Housing
Swale Borough Council,29UM,31/03/2017,1149602,332.00,WILLOW TREE HOME SOLUTIONS LTD,                         ,HOUSING SERVICES,Staying Put small repairs (contractors),Housing
Swale Borough Council,29UM,31/03/2017,1149610,3395.00,WILLOW TREE HOME SOLUTIONS LTD,                         ,HOUSING SERVICES,Housing Renovation Grants,Not used in this Structure
Swale Borough Council,29UM,31/03/2017,1149611,6938.44,WILLOW TREE HOME SOLUTIONS LTD,                         ,HOUSING SERVICES,Housing Renovation Grants,Not used in this Structure
